{"text_format":"1","workbook":"xlsx","n_sheets":16,"sheets":["Инструкция","Титульный","Ставка 1.","Ставка 2. (ВЛ)","Наименования ставок","Ставка 3. (КЛ)","Ставка 4.1.-4.3.","Ставка 4.4.-4.6.","Ставка 5. (ТП без РТП)","Ставка 6. (РТП)","Ставка 7. (ТП>35)","Ставка 8. (ПУ)","Названия ТСО+Ист. фин. тех.лист","Teh_Sheet","1.1Назв. объ. эл. сетевого хоз.","Приложение"],"not_rendered":{"charts":0,"images":2,"macros":1,"external_links":0,"defined_names":89,"comments":0,"pivot_tables":0},"unopened":[],"bounds":{"document_bytes":16777216,"sheet_cells":100000,"rows_first":2000,"rows_last":500,"rows_between":2000,"halvings":0,"cell_chars":16384,"cell_head_chars":4096},"cells_cut":0,"cells_raw":0,"read":"whole","date_system":"1900"}

{"sheet":"Инструкция","index":0,"n_rows":0,"n_cols":0,"rows_kept":0,"cut":false,"hidden":false,"merged":[]}

{"sheet":"Титульный","index":1,"n_rows":18,"n_cols":6,"rows_kept":18,"cut":false,"hidden":false,"merged":[[15,1,15,2],[3,1,4,3],[7,1,7,2],[17,1,17,2],[11,1,11,2],[13,1,13,2],[9,1,9,2]]}
[]
[null,null,null,"Версия 2.4"]
[null,null,null,null,null,2019]
[null,{"$f":"\"Информация для расчета ставок платы за технологическое присоединение к электрическим сетям на \" & D10 & \" год\n(фактические данные предоставляются за \" & D10-2 & \" г.)\"","v":"Информация для расчета ставок платы за технологическое присоединение к электрическим сетям на 2024 год\n(фактические данные предоставляются за 2022 г.)"},null,null,null,2020]
[null,null,null,null,null,2021]
[null,null,null,null,null,2022]
[]
[null,"Наименование организации",null,"ООО \"Тобольскпромэнергосеть\""]
[]
[null,"Период регулирования",null,2024]
[]
[null,"Ответственный за заполнение формы",null,"Кулаева Альбина Рашитовна"]
[]
[null,"Телефон исполнителя",null,"8(3456)39-50-53"]
[]
[null,"Электонная почта",null,"tobenerg@mail.ru "]
[]
[null,"Дата заполнения"]

{"sheet":"Ставка 1.","index":2,"n_rows":76,"n_cols":8,"rows_kept":76,"cut":false,"hidden":false,"merged":[[0,1,2,7],[4,1,5,1],[4,2,5,2],[4,3,4,5],[4,7,5,7],[4,6,5,6]]}
[null,{"$f":"\"Расходы на выполнение мероприятий по технологическому присоединению, \nпредусмотренным подпунктами 'а' и 'в' пункта 16 Методических указаний, за \"& Титульный!D10-2 & \" гг.\"","v":"Расходы на выполнение мероприятий по технологическому присоединению, \nпредусмотренным подпунктами 'а' и 'в' пункта 16 Методических указаний, за 2022 гг."}]
[]
[]
[]
[null,"N п/п","Наименование мероприятий","Информация для расчета \nстандартизированной тарифной ставки С1",null,null,"Год","Расходы на одно присоединение (руб. на одно ТП),\n(без НДС)"]
[null,null,null,"Расходы по каждому мероприятию (руб.),\n(без НДС)","Количество технологических присоединений (шт.)","Объем максимальной мощности \n(кВт)"]
[null,1,2,3,4,5,6,7]
[null,null,null,null,{"$f":"Титульный!D10-4","v":2020}]
[null,1,"Подготовка и выдача сетевой организацией технических условий Заявителю, в том числе:",{"$f":"SUM(D10:D18)","v":0},{"$f":"SUM(E10:E18)","v":0},{"$f":"SUM(F10:F18)","v":0},{"$f":"Титульный!$D$10-4","v":2020},{"$f":"IFERROR(D9/E9,\"Заполните все столбцы\")","v":"Заполните все столбцы"}]
[null," 1.1","п.12(1). Юридические лице или индивидуальные предприниматели в целях технологического присоединения по второй или третьей категории надежности энергопринимающих устройств, максимальная мощность которых составляет до 150 кВт включительно, в случае если технологическое присоединение энергопринимающих устройств таких заявителей осуществляется на уровне напряжения 0,4 кВ и ниже",null,null,null,{"$f":"Титульный!$D$10-4","v":2020},{"$f":"IFERROR(D10/E10,\"Заполните все столбцы\")","v":"Заполните все столбцы"}]
[null," 1.2","п.13(2). Юридические лица или индивидуальные предприниматели в целях технологического присоединения объектов микрогенерации к объектам электросетевого хозяйства с уровнем напряжения до 1000 В, в случае если технологическое присоединение энергопринимающих устройств таких заявителей осуществляется на уровне напряжения 0,4 кВ и ниже",null,null,null,{"$f":"Титульный!$D$10-4","v":2020},"Заполните все столбцы"]
[null," 1.3","п.13(3). Юридические лица или индивидуальные предприниматели в целях одновременного технологического присоединения к объектам электросетевого хозяйства с уровнем напряжения до 1000 В энергопринимающих устройств, максимальная мощность которых составляет до 150 кВт включительно (с учетом ранее присоединенных в данной точке присоединения энергопринимающих устройств), электроснабжение которых предусматривается по одному источнику, и объектов микрогенерации, в случае если технологическое присоединение энергопринимающих устройств таких заявителей осуществляется на уровне напряжения 0,4 кВ и ниже ",null,null,null,{"$f":"Титульный!$D$10-4","v":2020},"Заполните все столбцы"]
[null," 1.4","п.13(4). Физические лица в целях технологического присоединения объекта микрогенерации к объектам электросетевого хозяйства с уровнем напряжения до 1000 В, в случае если технологическое присоединение энергопринимающих устройств таких заявителей осуществляется на уровне напряжения 0,4 кВ и ниже",null,null,null,{"$f":"Титульный!$D$10-4","v":2020},"Заполните все столбцы"]
[null," 1.5","п.13(5). Физические лица в целях одновременного технологического присоединения к объектам электросетевого хозяйства с уровнем напряжения до 1000 В энергопринимающих устройств, максимальная мощность которых составляет до 150 кВт включительно (с учетом ранее присоединенных в данной точке присоединения энергопринимающих устройств), которые используются для бытовых и иных нужд, не связанных с осуществлением предпринимательской деятельности, и электроснабжение которых предусматривается по одному источнику, и объектов микрогенерации, в случае если технологическое присоединение энергопринимающих устройств таких заявителей осуществляется на уровне напряжения 0,4 кВ и ниже",null,null,null,{"$f":"Титульный!$D$10-4","v":2020},"Заполните все столбцы"]
[null," 1.6","п.14. Физические лица в целях технологического присоединения энергопринимающих устройств, максимальная мощность которых составляет до 15 кВт включительно (с учетом ранее присоединенных в данной точке присоединения энергопринимающих устройств), которые используются для бытовых и иных нужд, не связанных с осуществлением предпринимательской деятельности, и электроснабжение которых предусматривается по одному источнику, в случае если технологическое присоединение энергопринимающих устройств таких заявителей осуществляется на уровне напряжения 0,4 кВ и ниже",null,null,null,{"$f":"Титульный!$D$10-4","v":2020},"Заполните все столбцы"]
[null," 1.7","Заявители, не относящиеся к вышеуказннаыми категориям  свыше 15 кВт до 150 кВт",null,null,null,{"$f":"Титульный!$D$10-4","v":2020},{"$f":"IFERROR(D16/E16,\"Заполните все столбцы\")","v":"Заполните все столбцы"}]
[null," 1.8","Заявители, не относящиеся к вышеуказннаыми категориям  свыше 150 кВт до 670 кВт",null,null,null,{"$f":"Титульный!$D$10-4","v":2020},"Заполните все столбцы"]
[null," 1.9","Заявители, не относящиеся к вышеуказннаыми категориям  свыше 670 кВт",null,null,null,{"$f":"Титульный!$D$10-4","v":2020},"Заполните все столбцы"]
[null,2,"Проверка сетевой организацией выполнения технических условий Заявителем",{"$f":"D20+D27","v":0},{"$f":"E20+E27","v":0},0,{"$f":"Титульный!$D$10-4","v":2020},"Заполните все столбцы"]
[null,"2.1","Выдача сетевой организацией уведомления об обеспечении сетевой организацией возможности присоединения к электрическим сетям Заявителям, указанным в абзаце шестом пункта 24 Методических указаний по определению размера платы за технологическое присоединение к электрическим сетям\n",{"$f":"SUM(D21:D26)","v":0},{"$f":"SUM(E21:E26)","v":0},0,{"$f":"Титульный!$D$10-4","v":2020},"Заполните все столбцы"]
[null,"2.1.1","п.12(1). Юридические лице или индивидуальные предприниматели в целях технологического присоединения по второй или третьей категории надежности энергопринимающих устройств, максимальная мощность которых составляет до 150 кВт включительно, в случае если технологическое присоединение энергопринимающих устройств таких заявителей осуществляется на уровне напряжения 0,4 кВ и ниже",null,null,null,{"$f":"Титульный!$D$10-4","v":2020},{"$f":"IFERROR(D21/E21,\"Заполните все столбцы\")","v":"Заполните все столбцы"}]
[null,"2.1.2","п.13(2). Юридические лица или индивидуальные предприниматели в целях технологического присоединения объектов микрогенерации к объектам электросетевого хозяйства с уровнем напряжения до 1000 В, в случае если технологическое присоединение энергопринимающих устройств таких заявителей осуществляется на уровне напряжения 0,4 кВ и ниже",null,null,null,{"$f":"Титульный!$D$10-4","v":2020},"Заполните все столбцы"]
[null,"2.1.3","п.13(3). Юридические лица или индивидуальные предприниматели в целях одновременного технологического присоединения к объектам электросетевого хозяйства с уровнем напряжения до 1000 В энергопринимающих устройств, максимальная мощность которых составляет до 150 кВт включительно (с учетом ранее присоединенных в данной точке присоединения энергопринимающих устройств), электроснабжение которых предусматривается по одному источнику, и объектов микрогенерации, в случае если технологическое присоединение энергопринимающих устройств таких заявителей осуществляется на уровне напряжения 0,4 кВ и ниже ",null,null,null,{"$f":"Титульный!$D$10-4","v":2020},"Заполните все столбцы"]
[null,"2.1.4","п.13(4). Физические лица в целях технологического присоединения объекта микрогенерации к объектам электросетевого хозяйства с уровнем напряжения до 1000 В, в случае если технологическое присоединение энергопринимающих устройств таких заявителей осуществляется на уровне напряжения 0,4 кВ и ниже",null,null,null,{"$f":"Титульный!$D$10-4","v":2020},"Заполните все столбцы"]
[null,"2.1.5","п.13(5). Физические лица в целях одновременного технологического присоединения к объектам электросетевого хозяйства с уровнем напряжения до 1000 В энергопринимающих устройств, максимальная мощность которых составляет до 150 кВт включительно (с учетом ранее присоединенных в данной точке присоединения энергопринимающих устройств), которые используются для бытовых и иных нужд, не связанных с осуществлением предпринимательской деятельности, и электроснабжение которых предусматривается по одному источнику, и объектов микрогенерации, в случае если технологическое присоединение энергопринимающих устройств таких заявителей осуществляется на уровне напряжения 0,4 кВ и ниже",null,null,null,{"$f":"Титульный!$D$10-4","v":2020},"Заполните все столбцы"]
[null,"2.1.6","п.14. Физические лица в целях технологического присоединения энергопринимающих устройств, максимальная мощность которых составляет до 15 кВт включительно (с учетом ранее присоединенных в данной точке присоединения энергопринимающих устройств), которые используются для бытовых и иных нужд, не связанных с осуществлением предпринимательской деятельности, и электроснабжение которых предусматривается по одному источнику, в случае если технологическое присоединение энергопринимающих устройств таких заявителей осуществляется на уровне напряжения 0,4 кВ и ниже",null,null,null,{"$f":"Титульный!$D$10-4","v":2020},"Заполните все столбцы"]
[null,"2.2","Проверка сетевой организацией выполнения технических условий Заявителями, указанными в абзаце седьмом пункта 24 Методических указаний по определению размера платы за технологическое присоединение к электрическим сетям\n",{"$f":"SUM(D28:D30)","v":0},{"$f":"SUM(E28:E30)","v":0},0,{"$f":"Титульный!$D$10-4","v":2020},"Заполните все столбцы"]
[null,"2.2.1","Заявители, не относящиеся к вышеуказннаыми категориям  свыше 15 кВт до 150 кВт",null,null,null,{"$f":"Титульный!$D$10-4","v":2020},{"$f":"IFERROR(D28/E28,\"Заполните все столбцы\")","v":"Заполните все столбцы"}]
[null,"2.2.2","Заявители, не относящиеся к вышеуказннаыми категориям  свыше 150 кВт до 670 кВт",null,null,null,{"$f":"Титульный!$D$10-4","v":2020},"Заполните все столбцы"]
[null,"2.2.3","Заявители, не относящиеся к вышеуказннаыми категориям  свыше 670 кВт",null,null,null,{"$f":"Титульный!$D$10-4","v":2020},"Заполните все столбцы"]
[null,null,null,null,{"$f":"Титульный!D10-3","v":2021}]
[null,1,"Подготовка и выдача сетевой организацией технических условий Заявителю, в том числе:",{"$f":"SUM(D33:D41)","v":0},{"$f":"SUM(E33:E41)","v":0},{"$f":"SUM(F33:F41)","v":0},{"$f":"Титульный!$D$10-3","v":2021},{"$f":"IFERROR(D32/E32,\"Заполните все столбцы\")","v":"Заполните все столбцы"}]
[null," 1.1","п.12(1). Юридические лице или индивидуальные предприниматели в целях технологического присоединения по второй или третьей категории надежности энергопринимающих устройств, максимальная мощность которых составляет до 150 кВт включительно, в случае если технологическое присоединение энергопринимающих устройств таких заявителей осуществляется на уровне напряжения 0,4 кВ и ниже",null,null,null,{"$f":"Титульный!$D$10-3","v":2021},{"$f":"IFERROR(D33/E33,\"Заполните все столбцы\")","v":"Заполните все столбцы"}]
[null," 1.2","п.13(2). Юридические лица или индивидуальные предприниматели в целях технологического присоединения объектов микрогенерации к объектам электросетевого хозяйства с уровнем напряжения до 1000 В, в случае если технологическое присоединение энергопринимающих устройств таких заявителей осуществляется на уровне напряжения 0,4 кВ и ниже",null,null,null,{"$f":"Титульный!$D$10-3","v":2021},"Заполните все столбцы"]
[null," 1.3","п.13(3). Юридические лица или индивидуальные предприниматели в целях одновременного технологического присоединения к объектам электросетевого хозяйства с уровнем напряжения до 1000 В энергопринимающих устройств, максимальная мощность которых составляет до 150 кВт включительно (с учетом ранее присоединенных в данной точке присоединения энергопринимающих устройств), электроснабжение которых предусматривается по одному источнику, и объектов микрогенерации, в случае если технологическое присоединение энергопринимающих устройств таких заявителей осуществляется на уровне напряжения 0,4 кВ и ниже ",null,null,null,{"$f":"Титульный!$D$10-3","v":2021},"Заполните все столбцы"]
[null," 1.4","п.13(4). Физические лица в целях технологического присоединения объекта микрогенерации к объектам электросетевого хозяйства с уровнем напряжения до 1000 В, в случае если технологическое присоединение энергопринимающих устройств таких заявителей осуществляется на уровне напряжения 0,4 кВ и ниже",null,null,null,{"$f":"Титульный!$D$10-3","v":2021},"Заполните все столбцы"]
[null," 1.5","п.13(5). Физические лица в целях одновременного технологического присоединения к объектам электросетевого хозяйства с уровнем напряжения до 1000 В энергопринимающих устройств, максимальная мощность которых составляет до 150 кВт включительно (с учетом ранее присоединенных в данной точке присоединения энергопринимающих устройств), которые используются для бытовых и иных нужд, не связанных с осуществлением предпринимательской деятельности, и электроснабжение которых предусматривается по одному источнику, и объектов микрогенерации, в случае если технологическое присоединение энергопринимающих устройств таких заявителей осуществляется на уровне напряжения 0,4 кВ и ниже",null,null,null,{"$f":"Титульный!$D$10-3","v":2021},"Заполните все столбцы"]
[null," 1.6","п.14. Физические лица в целях технологического присоединения энергопринимающих устройств, максимальная мощность которых составляет до 15 кВт включительно (с учетом ранее присоединенных в данной точке присоединения энергопринимающих устройств), которые используются для бытовых и иных нужд, не связанных с осуществлением предпринимательской деятельности, и электроснабжение которых предусматривается по одному источнику, в случае если технологическое присоединение энергопринимающих устройств таких заявителей осуществляется на уровне напряжения 0,4 кВ и ниже",null,null,null,{"$f":"Титульный!$D$10-3","v":2021},"Заполните все столбцы"]
[null," 1.7","Заявители, не относящиеся к вышеуказннаыми категориям  свыше 15 кВт до 150 кВт",null,null,null,{"$f":"Титульный!$D$10-3","v":2021},"Заполните все столбцы"]
[null," 1.8","Заявители, не относящиеся к вышеуказннаыми категориям  свыше 150 кВт до 670 кВт",null,null,null,{"$f":"Титульный!$D$10-3","v":2021},"Заполните все столбцы"]
[null," 1.9","Заявители, не относящиеся к вышеуказннаыми категориям  свыше 670 кВт",null,null,null,{"$f":"Титульный!$D$10-3","v":2021},"Заполните все столбцы"]
[null,2,"Проверка сетевой организацией выполнения технических условий Заявителем",{"$f":"D43+D50","v":0},{"$f":"E43+E50","v":0},0,{"$f":"Титульный!$D$10-3","v":2021},"Заполните все столбцы"]
[null,"2.1","Выдача сетевой организацией уведомления об обеспечении сетевой организацией возможности присоединения к электрическим сетям Заявителям, указанным в абзаце шестом пункта 24 Методических указаний по определению размера платы за технологическое присоединение к электрическим сетям\n",{"$f":"SUM(D44:D49)","v":0},{"$f":"SUM(E44:E49)","v":0},{"$f":"SUM(F44:F49)","v":0},{"$f":"Титульный!$D$10-3","v":2021},"Заполните все столбцы"]
[null,"2.1.1","п.12(1). Юридические лице или индивидуальные предприниматели в целях технологического присоединения по второй или третьей категории надежности энергопринимающих устройств, максимальная мощность которых составляет до 150 кВт включительно, в случае если технологическое присоединение энергопринимающих устройств таких заявителей осуществляется на уровне напряжения 0,4 кВ и ниже",null,null,null,{"$f":"Титульный!$D$10-3","v":2021},"Заполните все столбцы"]
[null,"2.1.2","п.13(2). Юридические лица или индивидуальные предприниматели в целях технологического присоединения объектов микрогенерации к объектам электросетевого хозяйства с уровнем напряжения до 1000 В, в случае если технологическое присоединение энергопринимающих устройств таких заявителей осуществляется на уровне напряжения 0,4 кВ и ниже",null,null,null,{"$f":"Титульный!$D$10-3","v":2021},"Заполните все столбцы"]
[null,"2.1.3","п.13(3). Юридические лица или индивидуальные предприниматели в целях одновременного технологического присоединения к объектам электросетевого хозяйства с уровнем напряжения до 1000 В энергопринимающих устройств, максимальная мощность которых составляет до 150 кВт включительно (с учетом ранее присоединенных в данной точке присоединения энергопринимающих устройств), электроснабжение которых предусматривается по одному источнику, и объектов микрогенерации, в случае если технологическое присоединение энергопринимающих устройств таких заявителей осуществляется на уровне напряжения 0,4 кВ и ниже ",null,null,null,{"$f":"Титульный!$D$10-3","v":2021},"Заполните все столбцы"]
[null,"2.1.4","п.13(4). Физические лица в целях технологического присоединения объекта микрогенерации к объектам электросетевого хозяйства с уровнем напряжения до 1000 В, в случае если технологическое присоединение энергопринимающих устройств таких заявителей осуществляется на уровне напряжения 0,4 кВ и ниже",null,null,null,{"$f":"Титульный!$D$10-3","v":2021},"Заполните все столбцы"]
[null,"2.1.5","п.13(5). Физические лица в целях одновременного технологического присоединения к объектам электросетевого хозяйства с уровнем напряжения до 1000 В энергопринимающих устройств, максимальная мощность которых составляет до 150 кВт включительно (с учетом ранее присоединенных в данной точке присоединения энергопринимающих устройств), которые используются для бытовых и иных нужд, не связанных с осуществлением предпринимательской деятельности, и электроснабжение которых предусматривается по одному источнику, и объектов микрогенерации, в случае если технологическое присоединение энергопринимающих устройств таких заявителей осуществляется на уровне напряжения 0,4 кВ и ниже",null,null,null,{"$f":"Титульный!$D$10-3","v":2021},"Заполните все столбцы"]
[null,"2.1.6","п.14. Физические лица в целях технологического присоединения энергопринимающих устройств, максимальная мощность которых составляет до 15 кВт включительно (с учетом ранее присоединенных в данной точке присоединения энергопринимающих устройств), которые используются для бытовых и иных нужд, не связанных с осуществлением предпринимательской деятельности, и электроснабжение которых предусматривается по одному источнику, в случае если технологическое присоединение энергопринимающих устройств таких заявителей осуществляется на уровне напряжения 0,4 кВ и ниже",null,null,null,{"$f":"Титульный!$D$10-3","v":2021},"Заполните все столбцы"]
[null,"2.2","Проверка сетевой организацией выполнения технических условий Заявителями, указанными в абзаце седьмом пункта 24 Методических указаний по определению размера платы за технологическое присоединение к электрическим сетям\n",{"$f":"SUM(D51:D53)","v":0},{"$f":"SUM(E51:E53)","v":0},{"$f":"SUM(F51:F53)","v":0},{"$f":"Титульный!$D$10-3","v":2021},"Заполните все столбцы"]
[null,"2.2.1","Заявители, не относящиеся к вышеуказннаыми категориям  свыше 15 кВт до 150 кВт",null,null,null,{"$f":"Титульный!$D$10-3","v":2021},"Заполните все столбцы"]
[null,"2.2.2","Заявители, не относящиеся к вышеуказннаыми категориям  свыше 150 кВт до 670 кВт",null,null,null,{"$f":"Титульный!$D$10-3","v":2021},"Заполните все столбцы"]
[null,"2.2.3","Заявители, не относящиеся к вышеуказннаыми категориям  свыше 670 кВт",null,null,null,{"$f":"Титульный!$D$10-3","v":2021},"Заполните все столбцы"]
[null,null,null,null,{"$f":"Титульный!D10-2","v":2022}]
[null,1,"Подготовка и выдача сетевой организацией технических условий Заявителю, в том числе:",{"$f":"SUM(D56:D64)","v":1682.42},{"$f":"SUM(E56:E64)","v":1},{"$f":"SUM(F56:F64)","v":130},{"$f":"Титульный!$D$10-2","v":2022},{"$f":"IFERROR(D55/E55,\"Заполните все столбцы\")","v":1682.42}]
[null," 1.1","п.12(1). Юридические лице или индивидуальные предприниматели в целях технологического присоединения по второй или третьей категории надежности энергопринимающих устройств, максимальная мощность которых составляет до 150 кВт включительно, в случае если технологическое присоединение энергопринимающих устройств таких заявителей осуществляется на уровне напряжения 0,4 кВ и ниже",1682.42,1,130,{"$f":"Титульный!$D$10-2","v":2022},{"$f":"IFERROR(D56/E56,\"Заполните все столбцы\")","v":1682.42}]
[null," 1.2","п.13(2). Юридические лица или индивидуальные предприниматели в целях технологического присоединения объектов микрогенерации к объектам электросетевого хозяйства с уровнем напряжения до 1000 В, в случае если технологическое присоединение энергопринимающих устройств таких заявителей осуществляется на уровне напряжения 0,4 кВ и ниже",null,null,null,{"$f":"Титульный!$D$10-2","v":2022},"Заполните все столбцы"]
[null," 1.3","п.13(3). Юридические лица или индивидуальные предприниматели в целях одновременного технологического присоединения к объектам электросетевого хозяйства с уровнем напряжения до 1000 В энергопринимающих устройств, максимальная мощность которых составляет до 150 кВт включительно (с учетом ранее присоединенных в данной точке присоединения энергопринимающих устройств), электроснабжение которых предусматривается по одному источнику, и объектов микрогенерации, в случае если технологическое присоединение энергопринимающих устройств таких заявителей осуществляется на уровне напряжения 0,4 кВ и ниже ",null,null,null,{"$f":"Титульный!$D$10-2","v":2022},"Заполните все столбцы"]
[null," 1.4","п.13(4). Физические лица в целях технологического присоединения объекта микрогенерации к объектам электросетевого хозяйства с уровнем напряжения до 1000 В, в случае если технологическое присоединение энергопринимающих устройств таких заявителей осуществляется на уровне напряжения 0,4 кВ и ниже",null,null,null,{"$f":"Титульный!$D$10-2","v":2022},"Заполните все столбцы"]
[null," 1.5","п.13(5). Физические лица в целях одновременного технологического присоединения к объектам электросетевого хозяйства с уровнем напряжения до 1000 В энергопринимающих устройств, максимальная мощность которых составляет до 150 кВт включительно (с учетом ранее присоединенных в данной точке присоединения энергопринимающих устройств), которые используются для бытовых и иных нужд, не связанных с осуществлением предпринимательской деятельности, и электроснабжение которых предусматривается по одному источнику, и объектов микрогенерации, в случае если технологическое присоединение энергопринимающих устройств таких заявителей осуществляется на уровне напряжения 0,4 кВ и ниже",null,null,null,{"$f":"Титульный!$D$10-2","v":2022},"Заполните все столбцы"]
[null," 1.6","п.14. Физические лица в целях технологического присоединения энергопринимающих устройств, максимальная мощность которых составляет до 15 кВт включительно (с учетом ранее присоединенных в данной точке присоединения энергопринимающих устройств), которые используются для бытовых и иных нужд, не связанных с осуществлением предпринимательской деятельности, и электроснабжение которых предусматривается по одному источнику, в случае если технологическое присоединение энергопринимающих устройств таких заявителей осуществляется на уровне напряжения 0,4 кВ и ниже",null,null,null,{"$f":"Титульный!$D$10-2","v":2022},"Заполните все столбцы"]
[null," 1.7","Заявители, не относящиеся к вышеуказннаыми категориям  свыше 15 кВт до 150 кВт",null,null,null,{"$f":"Титульный!$D$10-2","v":2022},"Заполните все столбцы"]
[null," 1.8","Заявители, не относящиеся к вышеуказннаыми категориям  свыше 150 кВт до 670 кВт",null,null,null,{"$f":"Титульный!$D$10-2","v":2022},"Заполните все столбцы"]
[null," 1.9","Заявители, не относящиеся к вышеуказннаыми категориям  свыше 670 кВт",null,null,null,{"$f":"Титульный!$D$10-2","v":2022},"Заполните все столбцы"]
[null,2,"Проверка сетевой организацией выполнения технических условий Заявителем",{"$f":"D66+D73","v":2968.99},{"$f":"E66+E73","v":1},130,{"$f":"Титульный!$D$10-2","v":2022},2968.99]
[null,"2.1","Выдача сетевой организацией уведомления об обеспечении сетевой организацией возможности присоединения к электрическим сетям Заявителям, указанным в абзаце шестом пункта 24 Методических указаний по определению размера платы за технологическое присоединение к электрическим сетям\n",{"$f":"SUM(D67:D72)","v":2968.99},{"$f":"SUM(E67:E72)","v":1},{"$f":"SUM(F67:F72)","v":130},{"$f":"Титульный!$D$10-2","v":2022},2968.99]
[null,"2.1.1","п.12(1). Юридические лице или индивидуальные предприниматели в целях технологического присоединения по второй или третьей категории надежности энергопринимающих устройств, максимальная мощность которых составляет до 150 кВт включительно, в случае если технологическое присоединение энергопринимающих устройств таких заявителей осуществляется на уровне напряжения 0,4 кВ и ниже",2968.99,1,130,{"$f":"Титульный!$D$10-2","v":2022},2968.99]
[null,"2.1.2","п.13(2). Юридические лица или индивидуальные предприниматели в целях технологического присоединения объектов микрогенерации к объектам электросетевого хозяйства с уровнем напряжения до 1000 В, в случае если технологическое присоединение энергопринимающих устройств таких заявителей осуществляется на уровне напряжения 0,4 кВ и ниже",null,null,null,{"$f":"Титульный!$D$10-2","v":2022},"Заполните все столбцы"]
[null,"2.1.3","п.13(3). Юридические лица или индивидуальные предприниматели в целях одновременного технологического присоединения к объектам электросетевого хозяйства с уровнем напряжения до 1000 В энергопринимающих устройств, максимальная мощность которых составляет до 150 кВт включительно (с учетом ранее присоединенных в данной точке присоединения энергопринимающих устройств), электроснабжение которых предусматривается по одному источнику, и объектов микрогенерации, в случае если технологическое присоединение энергопринимающих устройств таких заявителей осуществляется на уровне напряжения 0,4 кВ и ниже ",null,null,null,{"$f":"Титульный!$D$10-2","v":2022},"Заполните все столбцы"]
[null,"2.1.4","п.13(4). Физические лица в целях технологического присоединения объекта микрогенерации к объектам электросетевого хозяйства с уровнем напряжения до 1000 В, в случае если технологическое присоединение энергопринимающих устройств таких заявителей осуществляется на уровне напряжения 0,4 кВ и ниже",null,null,null,{"$f":"Титульный!$D$10-2","v":2022},"Заполните все столбцы"]
[null,"2.1.5","п.13(5). Физические лица в целях одновременного технологического присоединения к объектам электросетевого хозяйства с уровнем напряжения до 1000 В энергопринимающих устройств, максимальная мощность которых составляет до 150 кВт включительно (с учетом ранее присоединенных в данной точке присоединения энергопринимающих устройств), которые используются для бытовых и иных нужд, не связанных с осуществлением предпринимательской деятельности, и электроснабжение которых предусматривается по одному источнику, и объектов микрогенерации, в случае если технологическое присоединение энергопринимающих устройств таких заявителей осуществляется на уровне напряжения 0,4 кВ и ниже",null,null,null,{"$f":"Титульный!$D$10-2","v":2022},"Заполните все столбцы"]
[null,"2.1.6","п.14. Физические лица в целях технологического присоединения энергопринимающих устройств, максимальная мощность которых составляет до 15 кВт включительно (с учетом ранее присоединенных в данной точке присоединения энергопринимающих устройств), которые используются для бытовых и иных нужд, не связанных с осуществлением предпринимательской деятельности, и электроснабжение которых предусматривается по одному источнику, в случае если технологическое присоединение энергопринимающих устройств таких заявителей осуществляется на уровне напряжения 0,4 кВ и ниже",null,null,null,{"$f":"Титульный!$D$10-2","v":2022},"Заполните все столбцы"]
[null,"2.2","Проверка сетевой организацией выполнения технических условий Заявителями, указанными в абзаце седьмом пункта 24 Методических указаний по определению размера платы за технологическое присоединение к электрическим сетям\n",{"$f":"SUM(D74:D76)","v":0},{"$f":"SUM(E74:E76)","v":0},{"$f":"SUM(F74:F76)","v":0},{"$f":"Титульный!$D$10-2","v":2022},"Заполните все столбцы"]
[null,"2.2.1","Заявители, не относящиеся к вышеуказннаыми категориям  свыше 15 кВт до 150 кВт",null,null,null,{"$f":"Титульный!$D$10-2","v":2022},"Заполните все столбцы"]
[null,"2.2.2","Заявители, не относящиеся к вышеуказннаыми категориям  свыше 150 кВт до 670 кВт",null,null,null,{"$f":"Титульный!$D$10-2","v":2022},"Заполните все столбцы"]
[null,"2.2.3","Заявители, не относящиеся к вышеуказннаыми категориям  свыше 670 кВт",null,null,null,{"$f":"Титульный!$D$10-2","v":2022},"Заполните все столбцы"]

{"sheet":"Ставка 2. (ВЛ)","index":3,"n_rows":18,"n_cols":22,"rows_kept":18,"cut":false,"hidden":false,"merged":[[1,2,3,21],[5,2,5,21]]}
[]
[null,null,"Расходы на строительство введенных в эксплуатацию объектов электросетевого хозяйства для целей технологического присоединения и для целей реализации иных мероприятий инвестиционной программы территориальной сетевой организации"]
[]
[]
[]
[null,null,"ДЛЯ НАСЕЛЕННЫХ ПУНКТОВ ВСЕХ ТЕРРИТОРИЙ"]
[]
[null,null,"N п/п","Технический код ставки","Обозначение ставки","Наименование ставки","Объект электросетевого хозяйства","Территория","Опоры","Опоры (за исключением)\nТехнический столбец","Изоляция","Материал провода","Сечение","Количество цепей","Напряжение","Год ввода объекта","Протяженность линий электропередачи, км","Присоединенная максимальная мощность, кВт (указывается только до 670кВт, если больше не указывается)","Общие расходы на строительство объекта, руб. \n(без НДС)","Расходы на строительство единицы ВЛ, руб./км","Наименование папки","Источник финансирования"]
[null,null,1,{"$f":"C$9+1","v":2},{"$f":"D$9+1","v":3},4,5,6,7,"Технический",{"$f":"I$9+1","v":8},{"$f":"K$9+1","v":9},10,11,12,13,14,15,16,17,18,19]
[null,null,"2.",null,null,null,null,null,null,null,null,null,"Строительство воздушных линий "]
[null," X ",{"$f":"ROW($C11)-12","v":-1},{"$f":"IF(OR($H11=\"\",$I11=\"\",$K11=\"\",$L11=\"\",$M11=\"\",$N11=\"\",$O11=\"\"),\"Заполните все столбцы\",LEFT($H11,2)&\".\"&\"2.\"&LEFT($I11,1)&\".\"&LEFT($K11,1)&\".\"&LEFT($L11,1)&\".\"&LEFT($M11,1)&\".\"&LEFT($N11,1)&\".\"&LEFT($J11,1))","v":"Заполните все столбцы"},{"$f":"IFERROR(\"С \"&(MID($D11,4,LEN($D11)))&\" \"&(RIGHT($H11,LEN($H11)-3))&\",\"&(RIGHT($O11,LEN($O11)-2)),\"Заполните все столбцы\")","v":"Заполните все столбцы"},{"$f":"IFERROR(LOWER(\"воздушные линии на \"&VLOOKUP($I11,'1.1Назв. объ. эл. сетевого хоз.'!$A$2:$B$24,2,0)&\" \"&VLOOKUP($K11,'1.1Назв. объ. эл. сетевого хоз.'!$A$2:$B$24,2,0)&\" \"&VLOOKUP($L11,'1.1Назв. объ. эл. сетевого хоз.'!$A$2:$B$24,2,0)&\" проводом \"&\"сечением \"&VLOOKUP($M11,'1.1Назв. объ. эл. сетевого хоз.'!$A$2:$B$24,2,0)&\" \"&VLOOKUP($N11,'1.1Назв. объ. эл. сетевого хоз.'!$A$2:$B$24,2,0)),\"Заполните все столбцы\")","v":"Заполните все столбцы"},"Название объекта",null,null,null,null,null,null,null,null,2022,null,null,null,{"$f":"IF(OR($S11=\"\",$Q11=\"\"),\"Заполните все столбцы\",IF(AND(IF(AND(S11<>0,Q11<>0),S11/Q11,0)>=1000000,IF(AND(S11<>0,Q11<>0),S11/Q11,0)<=20000000),IF(AND(S11<>0,Q11<>0),S11/Q11,0),\"Значение расходов вне возможного диапазона\"))","v":"Заполните все столбцы"}]
[null,"TAG",null,null,null,null,"Добавить строки"]
[null," X ",{"$f":"ROW($C13)-12","v":1},{"$f":"IF(OR($H13=\"\",$I13=\"\",$K13=\"\",$L13=\"\",$M13=\"\",$N13=\"\",$O13=\"\"),\"Заполните все столбцы\",LEFT($H13,2)&\".\"&\"2.\"&LEFT($I13,1)&\".\"&LEFT($K13,1)&\".\"&LEFT($L13,1)&\".\"&LEFT($M13,1)&\".\"&LEFT($N13,1)&\".\"&LEFT($J13,1))","v":"I .2.1.1.4.1.1."},{"$f":"IFERROR(\"С \"&(MID($D13,4,LEN($D13)))&\" \"&(RIGHT($H13,LEN($H13)-3))&\",\"&(RIGHT($O13,LEN($O13)-2)),\"Заполните все столбцы\")","v":"С 2.1.1.4.1.1.  Город, 1 - 20  кВ"},{"$f":"IFERROR(LOWER(\"воздушные линии на \"&VLOOKUP($I13,'1.1Назв. объ. эл. сетевого хоз.'!$A$2:$B$24,2,0)&\" \"&VLOOKUP($K13,'1.1Назв. объ. эл. сетевого хоз.'!$A$2:$B$24,2,0)&\" \"&VLOOKUP($L13,'1.1Назв. объ. эл. сетевого хоз.'!$A$2:$B$24,2,0)&\" проводом \"&\"сечением \"&VLOOKUP($M13,'1.1Назв. объ. эл. сетевого хоз.'!$A$2:$B$24,2,0)&\" \"&VLOOKUP($N13,'1.1Назв. объ. эл. сетевого хоз.'!$A$2:$B$24,2,0)),\"Заполните все столбцы\")","v":"воздушные линии на деревянных опорах изолированым алюминиевым проводом сечением до 50 квадратных мм включительно одноцепные "},"ВЛ-10 кВ ПС \"Стройбаза\" 2РУ-10 кВ яч. №24 ВЛ-10 кВ ф. \"СУ-931\" отпайка от оп. №30 ф. \"Жилищное строительство\" на КТПН-83","I ) Город","1) Деревянные",null,"1) Изолированый","4) Алюминиевый","1) до 50 квадратных мм включительно","1) Одноцепные ","2) 1 - 20  кВ",2022,0.82399999999999995,130,1625939.12,{"$f":"IF(OR($S13=\"\",$Q13=\"\"),\"Заполните все столбцы\",IF(AND(IF(AND(S13<>0,Q13<>0),S13/Q13,0)>=1000000,IF(AND(S13<>0,Q13<>0),S13/Q13,0)<=20000000),IF(AND(S13<>0,Q13<>0),S13/Q13,0),\"Значение расходов вне возможного диапазона\"))","v":1973227.0873786411},"2.1.С2.2022","Технологическое присоединение"]
[null," X ",{"$f":"ROW($C14)-12","v":2},{"$f":"IF(OR($H14=\"\",$I14=\"\",$K14=\"\",$L14=\"\",$M14=\"\",$N14=\"\",$O14=\"\"),\"Заполните все столбцы\",LEFT($H14,2)&\".\"&\"2.\"&LEFT($I14,1)&\".\"&LEFT($K14,1)&\".\"&LEFT($L14,1)&\".\"&LEFT($M14,1)&\".\"&LEFT($N14,1)&\".\"&LEFT($J14,1))","v":"Заполните все столбцы"},{"$f":"IFERROR(\"С \"&(MID($D14,4,LEN($D14)))&\" \"&(RIGHT($H14,LEN($H14)-3))&\",\"&(RIGHT($O14,LEN($O14)-2)),\"Заполните все столбцы\")","v":"Заполните все столбцы"},{"$f":"IFERROR(LOWER(\"воздушные линии на \"&VLOOKUP($I14,'1.1Назв. объ. эл. сетевого хоз.'!$A$2:$B$24,2,0)&\" \"&VLOOKUP($K14,'1.1Назв. объ. эл. сетевого хоз.'!$A$2:$B$24,2,0)&\" \"&VLOOKUP($L14,'1.1Назв. объ. эл. сетевого хоз.'!$A$2:$B$24,2,0)&\" проводом \"&\"сечением \"&VLOOKUP($M14,'1.1Назв. объ. эл. сетевого хоз.'!$A$2:$B$24,2,0)&\" \"&VLOOKUP($N14,'1.1Назв. объ. эл. сетевого хоз.'!$A$2:$B$24,2,0)),\"Заполните все столбцы\")","v":"Заполните все столбцы"},"Название объекта",null,null,null,null,null,null,null,null,2022,null,null,null,{"$f":"IF(OR($S14=\"\",$Q14=\"\"),\"Заполните все столбцы\",IF(AND(IF(AND(S14<>0,Q14<>0),S14/Q14,0)>=1000000,IF(AND(S14<>0,Q14<>0),S14/Q14,0)<=20000000),IF(AND(S14<>0,Q14<>0),S14/Q14,0),\"Значение расходов вне возможного диапазона\"))","v":"Заполните все столбцы"}]
[null," X ",{"$f":"ROW($C15)-12","v":3},{"$f":"IF(OR($H15=\"\",$I15=\"\",$K15=\"\",$L15=\"\",$M15=\"\",$N15=\"\",$O15=\"\"),\"Заполните все столбцы\",LEFT($H15,2)&\".\"&\"2.\"&LEFT($I15,1)&\".\"&LEFT($K15,1)&\".\"&LEFT($L15,1)&\".\"&LEFT($M15,1)&\".\"&LEFT($N15,1)&\".\"&LEFT($J15,1))","v":"Заполните все столбцы"},{"$f":"IFERROR(\"С \"&(MID($D15,4,LEN($D15)))&\" \"&(RIGHT($H15,LEN($H15)-3))&\",\"&(RIGHT($O15,LEN($O15)-2)),\"Заполните все столбцы\")","v":"Заполните все столбцы"},{"$f":"IFERROR(LOWER(\"воздушные линии на \"&VLOOKUP($I15,'1.1Назв. объ. эл. сетевого хоз.'!$A$2:$B$24,2,0)&\" \"&VLOOKUP($K15,'1.1Назв. объ. эл. сетевого хоз.'!$A$2:$B$24,2,0)&\" \"&VLOOKUP($L15,'1.1Назв. объ. эл. сетевого хоз.'!$A$2:$B$24,2,0)&\" проводом \"&\"сечением \"&VLOOKUP($M15,'1.1Назв. объ. эл. сетевого хоз.'!$A$2:$B$24,2,0)&\" \"&VLOOKUP($N15,'1.1Назв. объ. эл. сетевого хоз.'!$A$2:$B$24,2,0)),\"Заполните все столбцы\")","v":"Заполните все столбцы"},"Название объекта",null,null,null,null,null,null,null,null,2022,null,null,null,{"$f":"IF(OR($S15=\"\",$Q15=\"\"),\"Заполните все столбцы\",IF(AND(IF(AND(S15<>0,Q15<>0),S15/Q15,0)>=1000000,IF(AND(S15<>0,Q15<>0),S15/Q15,0)<=20000000),IF(AND(S15<>0,Q15<>0),S15/Q15,0),\"Значение расходов вне возможного диапазона\"))","v":"Заполните все столбцы"}]
[null," X ",{"$f":"ROW($C16)-12","v":4},{"$f":"IF(OR($H16=\"\",$I16=\"\",$K16=\"\",$L16=\"\",$M16=\"\",$N16=\"\",$O16=\"\"),\"Заполните все столбцы\",LEFT($H16,2)&\".\"&\"2.\"&LEFT($I16,1)&\".\"&LEFT($K16,1)&\".\"&LEFT($L16,1)&\".\"&LEFT($M16,1)&\".\"&LEFT($N16,1)&\".\"&LEFT($J16,1))","v":"Заполните все столбцы"},{"$f":"IFERROR(\"С \"&(MID($D16,4,LEN($D16)))&\" \"&(RIGHT($H16,LEN($H16)-3))&\",\"&(RIGHT($O16,LEN($O16)-2)),\"Заполните все столбцы\")","v":"Заполните все столбцы"},{"$f":"IFERROR(LOWER(\"воздушные линии на \"&VLOOKUP($I16,'1.1Назв. объ. эл. сетевого хоз.'!$A$2:$B$24,2,0)&\" \"&VLOOKUP($K16,'1.1Назв. объ. эл. сетевого хоз.'!$A$2:$B$24,2,0)&\" \"&VLOOKUP($L16,'1.1Назв. объ. эл. сетевого хоз.'!$A$2:$B$24,2,0)&\" проводом \"&\"сечением \"&VLOOKUP($M16,'1.1Назв. объ. эл. сетевого хоз.'!$A$2:$B$24,2,0)&\" \"&VLOOKUP($N16,'1.1Назв. объ. эл. сетевого хоз.'!$A$2:$B$24,2,0)),\"Заполните все столбцы\")","v":"Заполните все столбцы"},"Название объекта",null,null,null,null,null,null,null,null,2022,null,null,null,{"$f":"IF(OR($S16=\"\",$Q16=\"\"),\"Заполните все столбцы\",IF(AND(IF(AND(S16<>0,Q16<>0),S16/Q16,0)>=1000000,IF(AND(S16<>0,Q16<>0),S16/Q16,0)<=20000000),IF(AND(S16<>0,Q16<>0),S16/Q16,0),\"Значение расходов вне возможного диапазона\"))","v":"Заполните все столбцы"}]
[null," X ",{"$f":"ROW($C17)-12","v":5},{"$f":"IF(OR($H17=\"\",$I17=\"\",$K17=\"\",$L17=\"\",$M17=\"\",$N17=\"\",$O17=\"\"),\"Заполните все столбцы\",LEFT($H17,2)&\".\"&\"2.\"&LEFT($I17,1)&\".\"&LEFT($K17,1)&\".\"&LEFT($L17,1)&\".\"&LEFT($M17,1)&\".\"&LEFT($N17,1)&\".\"&LEFT($J17,1))","v":"Заполните все столбцы"},{"$f":"IFERROR(\"С \"&(MID($D17,4,LEN($D17)))&\" \"&(RIGHT($H17,LEN($H17)-3))&\",\"&(RIGHT($O17,LEN($O17)-2)),\"Заполните все столбцы\")","v":"Заполните все столбцы"},{"$f":"IFERROR(LOWER(\"воздушные линии на \"&VLOOKUP($I17,'1.1Назв. объ. эл. сетевого хоз.'!$A$2:$B$24,2,0)&\" \"&VLOOKUP($K17,'1.1Назв. объ. эл. сетевого хоз.'!$A$2:$B$24,2,0)&\" \"&VLOOKUP($L17,'1.1Назв. объ. эл. сетевого хоз.'!$A$2:$B$24,2,0)&\" проводом \"&\"сечением \"&VLOOKUP($M17,'1.1Назв. объ. эл. сетевого хоз.'!$A$2:$B$24,2,0)&\" \"&VLOOKUP($N17,'1.1Назв. объ. эл. сетевого хоз.'!$A$2:$B$24,2,0)),\"Заполните все столбцы\")","v":"Заполните все столбцы"},"Название объекта",null,null,null,null,null,null,null,null,2022,null,null,null,{"$f":"IF(OR($S17=\"\",$Q17=\"\"),\"Заполните все столбцы\",IF(AND(IF(AND(S17<>0,Q17<>0),S17/Q17,0)>=1000000,IF(AND(S17<>0,Q17<>0),S17/Q17,0)<=20000000),IF(AND(S17<>0,Q17<>0),S17/Q17,0),\"Значение расходов вне возможного диапазона\"))","v":"Заполните все столбцы"}]
[null,"TAG",null,null,null,null,"Добавить строки"]

{"sheet":"Наименования ставок","index":4,"n_rows":17,"n_cols":45,"rows_kept":17,"cut":false,"hidden":true,"merged":[[1,41,1,44],[1,2,1,8],[1,11,1,17],[1,19,1,23],[1,25,1,29],[1,31,1,34],[1,36,1,39]]}
[]
[null,null,"2. воздушные линии",null,null,null,null,null,null,null,null,"3. кабельные\n линии",null,null,null,null,null,null,null," 4. пункты секционирования (реклоузеры, распределительные пункты, переключательные пункты)",null,null,null,null,null," 5. трансформаторные подстанции (ТП), за исключением распределительных трансформаторных подстанций (РТП), с уровнем напряжения до 35 кВ",null,null,null,null,null,"6. распределительные трансформаторные подстанции (РТП) с уровнем напряжения до 35 кВ",null,null,null,null,"7. подстанции уровнем напряжения 35 кВ и выше",null,null,null,null,"8. обеспечение средствами коммерческого учета электрической энергии (мощности)"]
["Ст",null,"территория","опоры","изоляция","материал","сечение","количество цепей","напряжение",null,null,"территория","способ прокладки","вид жилы","изоляция","сечение","количество кабелей","напряжение",null,"территория","техническое исполнение","номинальный ток","Количество ячеек","напряжение",null,"территория","количество трансформаторов","мощность трансформаторов","тип исполнения","напряжение",null,"территория","количество трансформаторов","мощность трансформаторов","напряжение",null,"территория","количество трансформаторов","мощность трансформаторов","напряжение",null,"территория","количество фаз","способ подключения","напряжение"]
[1,null,"Городское","деревянных","изолированым","медным","до 50 квадратных мм включительно","1. Одноцепные ","1. 0,4 кВ и ниже",null,null,"город","траншея","одножильный"," резиновая или пластмассовая","до 50 квадратных мм включительно",1,"0,4 кВ и ниже",null,"город","реклоузер","до 100 А","от 5 до 10 включительно","0,4 кВ и ниже",null,"город","один","до 25 кВА включительно","столбового/мачтового","6/0,4 кВ",null,"город","один","до 25 кВА включительно","6(10)/0,4 кВ",null,"город","один","до 6,3 МВА включительно","35/6(10) кВ",null,"город","однофазные","прямого включения","0,4 кВ и ниже"]
[2,null,"Не городское","металлических","неизолированным","стальным","от 50 до 100 квадратных мм включительно","2. Двухцепные","2. 1 - 20  кВ",null,null,"не город","блоки","многожильный","бумажная"," от 50 до 100 квадратных мм включительно",2,"1 - 10  кВ",null,"не город","линейные разъединители","от 100 до 250 А включительно","от 10 до 15 включительно","1 - 20  кВ",null,"не город","два"," от 25 до 100 кВА включительно","шкафного или киоскового ","10/0,4 кВ",null,"не город","два"," от 25 до 100 кВА включительно","20/0,4 кВ",null,"не город","два","от 6,3 МВА до 10 МВА включительно","35/0,4 кВ",null,"не город","трехфазные","полукосвенного включения","1 - 20  кВ"]
[3,null,null,"металлических, за исключением многогранных",null,"сталеалюминиевым","от 100 до 200 квадратных мм включительно",null,"3. 27,5 - 60 кВ",null,null,null,"каналы",null,null,"от 100 до 200 квадратных мм включительно",3,"15 - 20 кВ",null,null,"выключатели нагрузки, устанавливаемые вне трансформаторных подстанций и распределительных и переключательных пунктов,","от 250 до 500 А включительно","свыше 15","35 кВ",null,null,null,"от 100 до 250 кВА включительно"," блочного","20/0,4 кВ",null,null,null,"от 100 до 250 кВА включительно",null,null,null,null,"от 10 МВА до 16 МВА включительно","110/35 кВ",null,null,null,"косвенного включения","35 кВ"]
[4,null,null,"металлических многогранных",null,"алюминиевым","от 200 до 500 квадратных мм включительно",null,"4. 110 кВ и выше",null,null,null,"туннели и коллекторы",null,null,"от 200 до 250 квадратных мм включительно",4,"27,5 - 60 кВ",null,null,"распределительные пункты (РП), за исключением комплектных распределительных устройств наружной установки (КРН, КРУН),","от 500 до 1000 А включительно",null,"110 кВ и выше",null,null,null,"от 250 до 400 кВА включительно",null,"6/10\n(10/6) кВ",null,null,null,"от 250 до 400 кВА включительно",null,null,null,null,"от 16 МВА до 25 МВА включительно","110/6(10) кВ",null,null,null,null,"110 кВ и выше"]
[5,null,null,"железобетонных",null,null,"от 500 до 800 квадратных мм включительно",null,null,null,null,null," галереи и эстакады",null,null,"от 250 до 300 квадратных мм включительно","более 4","110 кВ и выше",null,null,"комплектные распределительные устройства наружной установки (КРН, КРУН) "," свыше 1000 А",null,null,null,null,null,"от 400 до 1000 кВА включительно",null,"10/20\n(20/10) кВ",null,null,null,"от 400 до 1000 кВА включительно",null,null,null,null,"от 25 МВА до 32 МВА включительно","110/35/6(10) кВ"]
[6,null,null,null,null,null,"свыше 800 квадратных мм",null,null,null,null,null,"метод горизонтального наклонного бурения",null,null,"от 300 до 400 квадратных мм включительно",null,null,null,null,"переключательные пункты",null,null,null,null,null,null,"от 1000 кВА до 1250 кВА",null,"6/20\n(20/6) кВ",null,null,null,"от 1000 кВА до 1250 кВА",null,null,null,null,"от 32 МВА до 40 МВА включительно"]
[null,null,null,null,null,null,null,null,null,null,null,null,"подводная прокладка",null,null,"от 400 до 500 квадратных мм включительно",null,null,null,null,null,null,null,null,null,null,null,"от 1250 кВА до 1600 кВА включительно",null,null,null,null,null,"от 1250 кВА до 1600 кВА включительно",null,null,null,null,"от 40 МВА до 63 МВА включительно"]
[null,null,"территория","опоры","изоляция","материал","сечение","количество цепей","напряжение",null,null,null,null,null,null,"от 500 до 800 квадратных мм включительно",null,null,null,null,null,null,null,null,null,null,null,"от 1600 кВА до 2000 кВА включительно",null,null,null,null,null,"от 1600 кВА до 2000 кВА включительно",null,null,null,null,"от 63 МВА до 80 МВА включительно"]
[null,null,"город","деревянные","изолированый","медный","до 50 квадратных мм включительно","одноцепные ","0,4 кВ и ниже",null,null,null,null,null,null,"свыше 800 квадратных мм",null,null,null,null,null,null,null,null,null,null,null," от 2000 кВА до 2500 кВА включительно",null,null,null,null,null," от 2000 кВА до 2500 кВА включительно",null,null,null,null,"от 80 МВА до 100 МВА включительно"]
[null,null,"не город","металлические"," неизолированный","стальной"," от 50 до 100 квадратных мм включительно","двухцепные","1 - 20  кВ",null,null,null,null,null,null,null,null,null,null,null,null,null,null,null,null,null,null,"от 2500 кВА до 3150 кВА включительно",null,null,null,null,null,"от 2500 кВА до 3150 кВА включительно",null,null,null,null,"свыше 100 МВА"]
[null,null,null,"металлические, за исключением многогранных",null,"сталеалюминиевый","от 100 до 200 квадратных мм включительно",null,"27,5 - 60 кВ",null,null,null,null,null,null,null,null,null,null,null,null,null,null,null,null,null,null,"от 3150 кВА до 4000 кВА включительно",null,null,null,null,null,"от 3150 кВА до 4000 кВА включительно"]
[null,null,null,"металлические многогранные",null,"алюминиевый","от 200 до 500 квадратных мм включительно",null,"110 кВ и выше",null,null,null,null,null,null,null,null,null,null,null,null,null,null,null,null,null,null," свыше 4000 кВА",null,null,null,null,null," свыше 4000 кВА"]
[null,null,null,"железобетонные",null,null,"от 500 до 800 квадратных мм включительно"]
[null,null,null,null,null,null,"свыше 800 квадратных мм"]

{"sheet":"Ставка 3. (КЛ)","index":5,"n_rows":18,"n_cols":21,"rows_kept":18,"cut":false,"hidden":false,"merged":[[1,2,3,20],[5,2,5,20]]}
[]
[null,null,"Расходы на строительство введенных в эксплуатацию объектов электросетевого хозяйства для целей технологического присоединения и для целей реализации иных мероприятий инвестиционной программы территориальной сетевой организации"]
[]
[]
[]
[null,null,"ДЛЯ НАСЕЛЕННЫХ ПУНКТОВ ВСЕХ ТЕРРИТОРИЙ"]
[]
[null,null,"N п/п","Технический код ставки","Обозначение ставки","Наименование ставки","Объект электросетевого хозяйства","Территория","Способ прокладки","Вид жилы","Изоляция","Сечение","Количество кабелей","Напряжение","Год ввода объекта","Протяженность линий электропередачи, км","Присоединенная максимальная мощность, кВт (указывается только до 670кВт, если больше не указывается)","Общие расходы на строительство объекта, руб. \n(без НДС)","Расходы на строительство единицы КЛ, руб./км","Наименование папки","Источник финансирования"]
[null,null,1,{"$f":"C$9+1","v":2},{"$f":"D$9+1","v":3},4,5,6,7,8,9,10,11,12,13,14,15,16,17,18,19]
[null,null,"3.",null,null,null,null,null,null,null,null,"Строительство кабельных линий "]
[null," X ",{"$f":"ROW($C11)-12","v":-1},{"$f":"IF(OR($H11=\"\",$I11=\"\",$J11=\"\",$K11=\"\",$L11=\"\",$M11=\"\",$N11=\"\",$O11=\"\"),\"Заполните все столбцы\",LEFT($H11,2)&\".\"&\"3.\"&LEFT($I11,1)&\".\"&LEFT($J11,1)&\".\"&LEFT($K11,1)&\".\"&LEFT($L11,1)&\".\"&LEFT($M11,1))","v":"Заполните все столбцы"},{"$f":"IFERROR(\"С \"&(MID($D11,4,LEN($D11)))&\" \"&(RIGHT($H11,LEN($H11)-3))&\",\"&(RIGHT($N11,LEN($N11)-2)),\"Заполните все столбцы\")","v":"Заполните все столбцы"},{"$f":"IFERROR(LOWER(\"кабельные линии\"&IF($I11=\"6) метод горизонтального наклонного бурения\",VLOOKUP($I11,'1.1Назв. объ. эл. сетевого хоз.'!$D$2:$E$34,2,0)&\" \"&VLOOKUP($J11,'1.1Назв. объ. эл. сетевого хоз.'!$D$2:$E$34,2,0)&\" c \"&VLOOKUP($K11,'1.1Назв. объ. эл. сетевого хоз.'!$D$2:$E$34,2,0)&\" изоляцией \"&\"сечением провода \"&VLOOKUP($L11,'1.1Назв. объ. эл. сетевого хоз.'!$D$2:$E$34,2,0)&\" \"&IF($M11=\"5) более четырех\",\"с количеством \"&IF($I11=\"6) метод горизонтального наклонного бурения\",VLOOKUP($M11,'1.1Назв. объ. эл. сетевого хоз.'!$D$2:$F$34,3,0),VLOOKUP($M11,'1.1Назв. объ. эл. сетевого хоз.'!$D$2:$E$34,2,0)),IF($I11=\"6) метод горизонтального наклонного бурения\",VLOOKUP($M11,'1.1Назв. объ. эл. сетевого хоз.'!$D$2:$F$34,3,0),VLOOKUP($M11,'1.1Назв. объ. эл. сетевого хоз.'!$D$2:$E$34,2,0))),VLOOKUP($I11,'1.1Назв. объ. эл. сетевого хоз.'!$D$2:$E$34,2,0)&\" \"&VLOOKUP($J11,'1.1Назв. объ. эл. сетевого хоз.'!$D$2:$E$34,2,0)&\" c \"&VLOOKUP($K11,'1.1Назв. объ. эл. сетевого хоз.'!$D$2:$E$34,2,0)&\" изоляцией \"&\"сечением провода \"&VLOOKUP($L11,'1.1Назв. объ. эл. сетевого хоз.'!$D$2:$E$34,2,0)&\" \"&IF($M11=\"5) более четырех\",\"с количеством \"&IF($I11=\"6) метод горизонтального наклонного бурения\",VLOOKUP($M11,'1.1Назв. объ. эл. сетевого хоз.'!$D$2:$F$34,3,0),VLOOKUP($M11,'1.1Назв. объ. эл. сетевого хоз.'!$D$2:$E$34,2,0)),IF($I11=\"6) метод горизонтального наклонного бурения\",VLOOKUP($M11,'1.1Назв. объ. эл. сетевого хоз.'!$D$2:$F$34,3,0),VLOOKUP($M11,'1.1Назв. объ. эл. сетевого хоз.'!$D$2:$E$34,2,0)))&\" \"&VLOOKUP($I11,'1.1Назв. объ. эл. сетевого хоз.'!$D$2:$F$34,3,0))),\"Заполните все столбцы\")","v":"Заполните все столбцы"},"Название объекта",null,null,null,null,null,null,null,2022,null,null,null,{"$f":"IF(OR($R11=\"\",$P11=\"\"),\"Заполните все столбцы\",IF(AND(IF(AND(R11<>0,P11<>0),R11/P11,0)>=1000000,IF(AND(R11<>0,P11<>0),R11/P11,0)<=50000000),IF(AND(R11<>0,P11<>0),R11/P11,0),\"Значение расходов вне возможного диапазона\"))","v":"Заполните все столбцы"}]
[null,"TAG",null,null,null,null,"Добавить строки"]
[null," X ",{"$f":"ROW($C13)-12","v":1},{"$f":"IF(OR($H13=\"\",$I13=\"\",$J13=\"\",$K13=\"\",$L13=\"\",$M13=\"\",$N13=\"\",$O13=\"\"),\"Заполните все столбцы\",LEFT($H13,2)&\".\"&\"3.\"&LEFT($I13,1)&\".\"&LEFT($J13,1)&\".\"&LEFT($K13,1)&\".\"&LEFT($L13,1)&\".\"&LEFT($M13,1))","v":"Заполните все столбцы"},{"$f":"IFERROR(\"С \"&(MID($D13,4,LEN($D13)))&\" \"&(RIGHT($H13,LEN($H13)-3))&\",\"&(RIGHT($N13,LEN($N13)-2)),\"Заполните все столбцы\")","v":"Заполните все столбцы"},{"$f":"IFERROR(LOWER(\"кабельные линии\"&IF($I13=\"6) метод горизонтального наклонного бурения\",VLOOKUP($I13,'1.1Назв. объ. эл. сетевого хоз.'!$D$2:$E$34,2,0)&\" \"&VLOOKUP($J13,'1.1Назв. объ. эл. сетевого хоз.'!$D$2:$E$34,2,0)&\" c \"&VLOOKUP($K13,'1.1Назв. объ. эл. сетевого хоз.'!$D$2:$E$34,2,0)&\" изоляцией \"&\"сечением провода \"&VLOOKUP($L13,'1.1Назв. объ. эл. сетевого хоз.'!$D$2:$E$34,2,0)&\" \"&IF($M13=\"5) более четырех\",\"с количеством \"&IF($I13=\"6) метод горизонтального наклонного бурения\",VLOOKUP($M13,'1.1Назв. объ. эл. сетевого хоз.'!$D$2:$F$34,3,0),VLOOKUP($M13,'1.1Назв. объ. эл. сетевого хоз.'!$D$2:$E$34,2,0)),IF($I13=\"6) метод горизонтального наклонного бурения\",VLOOKUP($M13,'1.1Назв. объ. эл. сетевого хоз.'!$D$2:$F$34,3,0),VLOOKUP($M13,'1.1Назв. объ. эл. сетевого хоз.'!$D$2:$E$34,2,0))),VLOOKUP($I13,'1.1Назв. объ. эл. сетевого хоз.'!$D$2:$E$34,2,0)&\" \"&VLOOKUP($J13,'1.1Назв. объ. эл. сетевого хоз.'!$D$2:$E$34,2,0)&\" c \"&VLOOKUP($K13,'1.1Назв. объ. эл. сетевого хоз.'!$D$2:$E$34,2,0)&\" изоляцией \"&\"сечением провода \"&VLOOKUP($L13,'1.1Назв. объ. эл. сетевого хоз.'!$D$2:$E$34,2,0)&\" \"&IF($M13=\"5) более четырех\",\"с количеством \"&IF($I13=\"6) метод горизонтального наклонного бурения\",VLOOKUP($M13,'1.1Назв. объ. эл. сетевого хоз.'!$D$2:$F$34,3,0),VLOOKUP($M13,'1.1Назв. объ. эл. сетевого хоз.'!$D$2:$E$34,2,0)),IF($I13=\"6) метод горизонтального наклонного бурения\",VLOOKUP($M13,'1.1Назв. объ. эл. сетевого хоз.'!$D$2:$F$34,3,0),VLOOKUP($M13,'1.1Назв. объ. эл. сетевого хоз.'!$D$2:$E$34,2,0)))&\" \"&VLOOKUP($I13,'1.1Назв. объ. эл. сетевого хоз.'!$D$2:$F$34,3,0))),\"Заполните все столбцы\")","v":"Заполните все столбцы"},"Название объекта",null,null,null,null,null,null,null,2022,null,null,null,{"$f":"IF(OR($R13=\"\",$P13=\"\"),\"Заполните все столбцы\",IF(AND(IF(AND(R13<>0,P13<>0),R13/P13,0)>=1000000,IF(AND(R13<>0,P13<>0),R13/P13,0)<=50000000),IF(AND(R13<>0,P13<>0),R13/P13,0),\"Значение расходов вне возможного диапазона\"))","v":"Заполните все столбцы"}]
[null," X ",{"$f":"ROW($C14)-12","v":2},{"$f":"IF(OR($H14=\"\",$I14=\"\",$J14=\"\",$K14=\"\",$L14=\"\",$M14=\"\",$N14=\"\",$O14=\"\"),\"Заполните все столбцы\",LEFT($H14,2)&\".\"&\"3.\"&LEFT($I14,1)&\".\"&LEFT($J14,1)&\".\"&LEFT($K14,1)&\".\"&LEFT($L14,1)&\".\"&LEFT($M14,1))","v":"Заполните все столбцы"},{"$f":"IFERROR(\"С \"&(MID($D14,4,LEN($D14)))&\" \"&(RIGHT($H14,LEN($H14)-3))&\",\"&(RIGHT($N14,LEN($N14)-2)),\"Заполните все столбцы\")","v":"Заполните все столбцы"},{"$f":"IFERROR(LOWER(\"кабельные линии\"&IF($I14=\"6) метод горизонтального наклонного бурения\",VLOOKUP($I14,'1.1Назв. объ. эл. сетевого хоз.'!$D$2:$E$34,2,0)&\" \"&VLOOKUP($J14,'1.1Назв. объ. эл. сетевого хоз.'!$D$2:$E$34,2,0)&\" c \"&VLOOKUP($K14,'1.1Назв. объ. эл. сетевого хоз.'!$D$2:$E$34,2,0)&\" изоляцией \"&\"сечением провода \"&VLOOKUP($L14,'1.1Назв. объ. эл. сетевого хоз.'!$D$2:$E$34,2,0)&\" \"&IF($M14=\"5) более четырех\",\"с количеством \"&IF($I14=\"6) метод горизонтального наклонного бурения\",VLOOKUP($M14,'1.1Назв. объ. эл. сетевого хоз.'!$D$2:$F$34,3,0),VLOOKUP($M14,'1.1Назв. объ. эл. сетевого хоз.'!$D$2:$E$34,2,0)),IF($I14=\"6) метод горизонтального наклонного бурения\",VLOOKUP($M14,'1.1Назв. объ. эл. сетевого хоз.'!$D$2:$F$34,3,0),VLOOKUP($M14,'1.1Назв. объ. эл. сетевого хоз.'!$D$2:$E$34,2,0))),VLOOKUP($I14,'1.1Назв. объ. эл. сетевого хоз.'!$D$2:$E$34,2,0)&\" \"&VLOOKUP($J14,'1.1Назв. объ. эл. сетевого хоз.'!$D$2:$E$34,2,0)&\" c \"&VLOOKUP($K14,'1.1Назв. объ. эл. сетевого хоз.'!$D$2:$E$34,2,0)&\" изоляцией \"&\"сечением провода \"&VLOOKUP($L14,'1.1Назв. объ. эл. сетевого хоз.'!$D$2:$E$34,2,0)&\" \"&IF($M14=\"5) более четырех\",\"с количеством \"&IF($I14=\"6) метод горизонтального наклонного бурения\",VLOOKUP($M14,'1.1Назв. объ. эл. сетевого хоз.'!$D$2:$F$34,3,0),VLOOKUP($M14,'1.1Назв. объ. эл. сетевого хоз.'!$D$2:$E$34,2,0)),IF($I14=\"6) метод горизонтального наклонного бурения\",VLOOKUP($M14,'1.1Назв. объ. эл. сетевого хоз.'!$D$2:$F$34,3,0),VLOOKUP($M14,'1.1Назв. объ. эл. сетевого хоз.'!$D$2:$E$34,2,0)))&\" \"&VLOOKUP($I14,'1.1Назв. объ. эл. сетевого хоз.'!$D$2:$F$34,3,0))),\"Заполните все столбцы\")","v":"Заполните все столбцы"},"Название объекта",null,null,null,null,null,null,null,2022,null,null,null,{"$f":"IF(OR($R14=\"\",$P14=\"\"),\"Заполните все столбцы\",IF(AND(IF(AND(R14<>0,P14<>0),R14/P14,0)>=1000000,IF(AND(R14<>0,P14<>0),R14/P14,0)<=50000000),IF(AND(R14<>0,P14<>0),R14/P14,0),\"Значение расходов вне возможного диапазона\"))","v":"Заполните все столбцы"}]
[null," X ",{"$f":"ROW($C15)-12","v":3},{"$f":"IF(OR($H15=\"\",$I15=\"\",$J15=\"\",$K15=\"\",$L15=\"\",$M15=\"\",$N15=\"\",$O15=\"\"),\"Заполните все столбцы\",LEFT($H15,2)&\".\"&\"3.\"&LEFT($I15,1)&\".\"&LEFT($J15,1)&\".\"&LEFT($K15,1)&\".\"&LEFT($L15,1)&\".\"&LEFT($M15,1))","v":"Заполните все столбцы"},{"$f":"IFERROR(\"С \"&(MID($D15,4,LEN($D15)))&\" \"&(RIGHT($H15,LEN($H15)-3))&\",\"&(RIGHT($N15,LEN($N15)-2)),\"Заполните все столбцы\")","v":"Заполните все столбцы"},{"$f":"IFERROR(LOWER(\"кабельные линии\"&IF($I15=\"6) метод горизонтального наклонного бурения\",VLOOKUP($I15,'1.1Назв. объ. эл. сетевого хоз.'!$D$2:$E$34,2,0)&\" \"&VLOOKUP($J15,'1.1Назв. объ. эл. сетевого хоз.'!$D$2:$E$34,2,0)&\" c \"&VLOOKUP($K15,'1.1Назв. объ. эл. сетевого хоз.'!$D$2:$E$34,2,0)&\" изоляцией \"&\"сечением провода \"&VLOOKUP($L15,'1.1Назв. объ. эл. сетевого хоз.'!$D$2:$E$34,2,0)&\" \"&IF($M15=\"5) более четырех\",\"с количеством \"&IF($I15=\"6) метод горизонтального наклонного бурения\",VLOOKUP($M15,'1.1Назв. объ. эл. сетевого хоз.'!$D$2:$F$34,3,0),VLOOKUP($M15,'1.1Назв. объ. эл. сетевого хоз.'!$D$2:$E$34,2,0)),IF($I15=\"6) метод горизонтального наклонного бурения\",VLOOKUP($M15,'1.1Назв. объ. эл. сетевого хоз.'!$D$2:$F$34,3,0),VLOOKUP($M15,'1.1Назв. объ. эл. сетевого хоз.'!$D$2:$E$34,2,0))),VLOOKUP($I15,'1.1Назв. объ. эл. сетевого хоз.'!$D$2:$E$34,2,0)&\" \"&VLOOKUP($J15,'1.1Назв. объ. эл. сетевого хоз.'!$D$2:$E$34,2,0)&\" c \"&VLOOKUP($K15,'1.1Назв. объ. эл. сетевого хоз.'!$D$2:$E$34,2,0)&\" изоляцией \"&\"сечением провода \"&VLOOKUP($L15,'1.1Назв. объ. эл. сетевого хоз.'!$D$2:$E$34,2,0)&\" \"&IF($M15=\"5) более четырех\",\"с количеством \"&IF($I15=\"6) метод горизонтального наклонного бурения\",VLOOKUP($M15,'1.1Назв. объ. эл. сетевого хоз.'!$D$2:$F$34,3,0),VLOOKUP($M15,'1.1Назв. объ. эл. сетевого хоз.'!$D$2:$E$34,2,0)),IF($I15=\"6) метод горизонтального наклонного бурения\",VLOOKUP($M15,'1.1Назв. объ. эл. сетевого хоз.'!$D$2:$F$34,3,0),VLOOKUP($M15,'1.1Назв. объ. эл. сетевого хоз.'!$D$2:$E$34,2,0)))&\" \"&VLOOKUP($I15,'1.1Назв. объ. эл. сетевого хоз.'!$D$2:$F$34,3,0))),\"Заполните все столбцы\")","v":"Заполните все столбцы"},"Название объекта",null,null,null,null,null,null,null,2022,null,null,null,{"$f":"IF(OR($R15=\"\",$P15=\"\"),\"Заполните все столбцы\",IF(AND(IF(AND(R15<>0,P15<>0),R15/P15,0)>=1000000,IF(AND(R15<>0,P15<>0),R15/P15,0)<=50000000),IF(AND(R15<>0,P15<>0),R15/P15,0),\"Значение расходов вне возможного диапазона\"))","v":"Заполните все столбцы"}]
[null," X ",{"$f":"ROW($C16)-12","v":4},{"$f":"IF(OR($H16=\"\",$I16=\"\",$J16=\"\",$K16=\"\",$L16=\"\",$M16=\"\",$N16=\"\",$O16=\"\"),\"Заполните все столбцы\",LEFT($H16,2)&\".\"&\"3.\"&LEFT($I16,1)&\".\"&LEFT($J16,1)&\".\"&LEFT($K16,1)&\".\"&LEFT($L16,1)&\".\"&LEFT($M16,1))","v":"Заполните все столбцы"},{"$f":"IFERROR(\"С \"&(MID($D16,4,LEN($D16)))&\" \"&(RIGHT($H16,LEN($H16)-3))&\",\"&(RIGHT($N16,LEN($N16)-2)),\"Заполните все столбцы\")","v":"Заполните все столбцы"},{"$f":"IFERROR(LOWER(\"кабельные линии\"&IF($I16=\"6) метод горизонтального наклонного бурения\",VLOOKUP($I16,'1.1Назв. объ. эл. сетевого хоз.'!$D$2:$E$34,2,0)&\" \"&VLOOKUP($J16,'1.1Назв. объ. эл. сетевого хоз.'!$D$2:$E$34,2,0)&\" c \"&VLOOKUP($K16,'1.1Назв. объ. эл. сетевого хоз.'!$D$2:$E$34,2,0)&\" изоляцией \"&\"сечением провода \"&VLOOKUP($L16,'1.1Назв. объ. эл. сетевого хоз.'!$D$2:$E$34,2,0)&\" \"&IF($M16=\"5) более четырех\",\"с количеством \"&IF($I16=\"6) метод горизонтального наклонного бурения\",VLOOKUP($M16,'1.1Назв. объ. эл. сетевого хоз.'!$D$2:$F$34,3,0),VLOOKUP($M16,'1.1Назв. объ. эл. сетевого хоз.'!$D$2:$E$34,2,0)),IF($I16=\"6) метод горизонтального наклонного бурения\",VLOOKUP($M16,'1.1Назв. объ. эл. сетевого хоз.'!$D$2:$F$34,3,0),VLOOKUP($M16,'1.1Назв. объ. эл. сетевого хоз.'!$D$2:$E$34,2,0))),VLOOKUP($I16,'1.1Назв. объ. эл. сетевого хоз.'!$D$2:$E$34,2,0)&\" \"&VLOOKUP($J16,'1.1Назв. объ. эл. сетевого хоз.'!$D$2:$E$34,2,0)&\" c \"&VLOOKUP($K16,'1.1Назв. объ. эл. сетевого хоз.'!$D$2:$E$34,2,0)&\" изоляцией \"&\"сечением провода \"&VLOOKUP($L16,'1.1Назв. объ. эл. сетевого хоз.'!$D$2:$E$34,2,0)&\" \"&IF($M16=\"5) более четырех\",\"с количеством \"&IF($I16=\"6) метод горизонтального наклонного бурения\",VLOOKUP($M16,'1.1Назв. объ. эл. сетевого хоз.'!$D$2:$F$34,3,0),VLOOKUP($M16,'1.1Назв. объ. эл. сетевого хоз.'!$D$2:$E$34,2,0)),IF($I16=\"6) метод горизонтального наклонного бурения\",VLOOKUP($M16,'1.1Назв. объ. эл. сетевого хоз.'!$D$2:$F$34,3,0),VLOOKUP($M16,'1.1Назв. объ. эл. сетевого хоз.'!$D$2:$E$34,2,0)))&\" \"&VLOOKUP($I16,'1.1Назв. объ. эл. сетевого хоз.'!$D$2:$F$34,3,0))),\"Заполните все столбцы\")","v":"Заполните все столбцы"},"Название объекта",null,null,null,null,null,null,null,2022,null,null,null,{"$f":"IF(OR($R16=\"\",$P16=\"\"),\"Заполните все столбцы\",IF(AND(IF(AND(R16<>0,P16<>0),R16/P16,0)>=1000000,IF(AND(R16<>0,P16<>0),R16/P16,0)<=50000000),IF(AND(R16<>0,P16<>0),R16/P16,0),\"Значение расходов вне возможного диапазона\"))","v":"Заполните все столбцы"}]
[null," X ",{"$f":"ROW($C17)-12","v":5},{"$f":"IF(OR($H17=\"\",$I17=\"\",$J17=\"\",$K17=\"\",$L17=\"\",$M17=\"\",$N17=\"\",$O17=\"\"),\"Заполните все столбцы\",LEFT($H17,2)&\".\"&\"3.\"&LEFT($I17,1)&\".\"&LEFT($J17,1)&\".\"&LEFT($K17,1)&\".\"&LEFT($L17,1)&\".\"&LEFT($M17,1))","v":"Заполните все столбцы"},{"$f":"IFERROR(\"С \"&(MID($D17,4,LEN($D17)))&\" \"&(RIGHT($H17,LEN($H17)-3))&\",\"&(RIGHT($N17,LEN($N17)-2)),\"Заполните все столбцы\")","v":"Заполните все столбцы"},{"$f":"IFERROR(LOWER(\"кабельные линии\"&IF($I17=\"6) метод горизонтального наклонного бурения\",VLOOKUP($I17,'1.1Назв. объ. эл. сетевого хоз.'!$D$2:$E$34,2,0)&\" \"&VLOOKUP($J17,'1.1Назв. объ. эл. сетевого хоз.'!$D$2:$E$34,2,0)&\" c \"&VLOOKUP($K17,'1.1Назв. объ. эл. сетевого хоз.'!$D$2:$E$34,2,0)&\" изоляцией \"&\"сечением провода \"&VLOOKUP($L17,'1.1Назв. объ. эл. сетевого хоз.'!$D$2:$E$34,2,0)&\" \"&IF($M17=\"5) более четырех\",\"с количеством \"&IF($I17=\"6) метод горизонтального наклонного бурения\",VLOOKUP($M17,'1.1Назв. объ. эл. сетевого хоз.'!$D$2:$F$34,3,0),VLOOKUP($M17,'1.1Назв. объ. эл. сетевого хоз.'!$D$2:$E$34,2,0)),IF($I17=\"6) метод горизонтального наклонного бурения\",VLOOKUP($M17,'1.1Назв. объ. эл. сетевого хоз.'!$D$2:$F$34,3,0),VLOOKUP($M17,'1.1Назв. объ. эл. сетевого хоз.'!$D$2:$E$34,2,0))),VLOOKUP($I17,'1.1Назв. объ. эл. сетевого хоз.'!$D$2:$E$34,2,0)&\" \"&VLOOKUP($J17,'1.1Назв. объ. эл. сетевого хоз.'!$D$2:$E$34,2,0)&\" c \"&VLOOKUP($K17,'1.1Назв. объ. эл. сетевого хоз.'!$D$2:$E$34,2,0)&\" изоляцией \"&\"сечением провода \"&VLOOKUP($L17,'1.1Назв. объ. эл. сетевого хоз.'!$D$2:$E$34,2,0)&\" \"&IF($M17=\"5) более четырех\",\"с количеством \"&IF($I17=\"6) метод горизонтального наклонного бурения\",VLOOKUP($M17,'1.1Назв. объ. эл. сетевого хоз.'!$D$2:$F$34,3,0),VLOOKUP($M17,'1.1Назв. объ. эл. сетевого хоз.'!$D$2:$E$34,2,0)),IF($I17=\"6) метод горизонтального наклонного бурения\",VLOOKUP($M17,'1.1Назв. объ. эл. сетевого хоз.'!$D$2:$F$34,3,0),VLOOKUP($M17,'1.1Назв. объ. эл. сетевого хоз.'!$D$2:$E$34,2,0)))&\" \"&VLOOKUP($I17,'1.1Назв. объ. эл. сетевого хоз.'!$D$2:$F$34,3,0))),\"Заполните все столбцы\")","v":"Заполните все столбцы"},"Название объекта",null,null,null,null,null,null,null,2022,null,null,null,{"$f":"IF(OR($R17=\"\",$P17=\"\"),\"Заполните все столбцы\",IF(AND(IF(AND(R17<>0,P17<>0),R17/P17,0)>=1000000,IF(AND(R17<>0,P17<>0),R17/P17,0)<=50000000),IF(AND(R17<>0,P17<>0),R17/P17,0),\"Значение расходов вне возможного диапазона\"))","v":"Заполните все столбцы"}]
[null,"TAG",null,null,null,null,"Добавить строки"]

{"sheet":"Ставка 4.1.-4.3.","index":6,"n_rows":18,"n_cols":19,"rows_kept":18,"cut":false,"hidden":false,"merged":[[5,2,5,18],[1,2,3,18]]}
[]
[null,null,"Расходы на строительство введенных в эксплуатацию объектов электросетевого хозяйства для целей технологического присоединения и для целей реализации иных мероприятий инвестиционной программы территориальной сетевой организации"]
[]
[]
[]
[null,null,"ДЛЯ НАСЕЛЕННЫХ ПУНКТОВ ВСЕХ ТЕРРИТОРИЙ"]
[]
[null,null,"N п/п","Технический код ставки","Обозначение ставки","Наименование ставки","Объект электросетевого хозяйства","Территория","Техническое исполнение","Номинальный ток","Напряжение","Год ввода объекта","Количество пунктов секционирования, \nшт.","Общая трансформаторная мощность, кВт","Присоединенная максимальная мощность, кВт (указывается только до 670кВт, если больше не указывается)","Общие расходы на строительство объекта, руб. \n(без НДС)","Расходы на строительство единицы, руб./шт.","Наименование папки","Источник финансирования"]
[null,null,1,{"$f":"C$9+1","v":2},{"$f":"D$9+1","v":3},4,5,6,7,8,9,10,11,12,13,14,15,16,17]
[null,null,"4.",null,null,null,null,null,null,null,"Реклоузеры, линейные разъединители, выключатели нагрузки"]
[null," X ",{"$f":"ROW($C11)-12","v":-1},{"$f":"IF(OR($H11=\"\",$I11=\"\",$J11=\"\",$K11=\"\"),\"Заполните все столбцы\",LEFT($H11,2)&\".\"&\"4.\"&LEFT($I11,1)&\".\"&LEFT($J11,1))","v":"Заполните все столбцы"},{"$f":"IFERROR(\"С \"&(MID($D11,4,LEN($D11)))&\" \"&(RIGHT($H11,LEN($H11)-3))&\",\"&(RIGHT($K11,LEN($K11)-2)),\"Заполните все столбцы\")","v":"Заполните все столбцы"},{"$f":"IFERROR(VLOOKUP($I11,'1.1Назв. объ. эл. сетевого хоз.'!$H$2:$J$33,2,0)&\" номинальным током \"&VLOOKUP($J11,'1.1Назв. объ. эл. сетевого хоз.'!$H$2:$J$33,2,0),\"Заполните все столбцы\")","v":"Заполните все столбцы"},"Название объекта",null,null,null,null,2022,null,null,null,null,{"$f":"IF(AND(P11<>0,N11<>0),P11/N11,0)","v":0}]
[null,"TAG",null,null,null,null,"Добавить строки"]
[null," X ",{"$f":"ROW($C13)-12","v":1},{"$f":"IF(OR($H13=\"\",$I13=\"\",$J13=\"\",$K13=\"\"),\"Заполните все столбцы\",LEFT($H13,2)&\".\"&\"4.\"&LEFT($I13,1)&\".\"&LEFT($J13,1))","v":"Заполните все столбцы"},{"$f":"IFERROR(\"С \"&(MID($D13,4,LEN($D13)))&\" \"&(RIGHT($H13,LEN($H13)-3))&\",\"&(RIGHT($K13,LEN($K13)-2)),\"Заполните все столбцы\")","v":"Заполните все столбцы"},{"$f":"IFERROR(VLOOKUP($I13,'1.1Назв. объ. эл. сетевого хоз.'!$H$2:$J$33,2,0)&\" номинальным током \"&VLOOKUP($J13,'1.1Назв. объ. эл. сетевого хоз.'!$H$2:$J$33,2,0),\"Заполните все столбцы\")","v":"Заполните все столбцы"},"Название объекта",null,null,null,null,2022,null,null,null,null,{"$f":"IF(AND(P13<>0,N13<>0),P13/N13,0)","v":0}]
[null," X ",{"$f":"ROW($C14)-12","v":2},{"$f":"IF(OR($H14=\"\",$I14=\"\",$J14=\"\",$K14=\"\"),\"Заполните все столбцы\",LEFT($H14,2)&\".\"&\"4.\"&LEFT($I14,1)&\".\"&LEFT($J14,1))","v":"Заполните все столбцы"},{"$f":"IFERROR(\"С \"&(MID($D14,4,LEN($D14)))&\" \"&(RIGHT($H14,LEN($H14)-3))&\",\"&(RIGHT($K14,LEN($K14)-2)),\"Заполните все столбцы\")","v":"Заполните все столбцы"},{"$f":"IFERROR(VLOOKUP($I14,'1.1Назв. объ. эл. сетевого хоз.'!$H$2:$J$33,2,0)&\" номинальным током \"&VLOOKUP($J14,'1.1Назв. объ. эл. сетевого хоз.'!$H$2:$J$33,2,0),\"Заполните все столбцы\")","v":"Заполните все столбцы"},"Название объекта",null,null,null,null,2022,null,null,null,null,{"$f":"IF(AND(P14<>0,N14<>0),P14/N14,0)","v":0}]
[null," X ",{"$f":"ROW($C15)-12","v":3},{"$f":"IF(OR($H15=\"\",$I15=\"\",$J15=\"\",$K15=\"\"),\"Заполните все столбцы\",LEFT($H15,2)&\".\"&\"4.\"&LEFT($I15,1)&\".\"&LEFT($J15,1))","v":"Заполните все столбцы"},{"$f":"IFERROR(\"С \"&(MID($D15,4,LEN($D15)))&\" \"&(RIGHT($H15,LEN($H15)-3))&\",\"&(RIGHT($K15,LEN($K15)-2)),\"Заполните все столбцы\")","v":"Заполните все столбцы"},{"$f":"IFERROR(VLOOKUP($I15,'1.1Назв. объ. эл. сетевого хоз.'!$H$2:$J$33,2,0)&\" номинальным током \"&VLOOKUP($J15,'1.1Назв. объ. эл. сетевого хоз.'!$H$2:$J$33,2,0),\"Заполните все столбцы\")","v":"Заполните все столбцы"},"Название объекта",null,null,null,null,2022,null,null,null,null,{"$f":"IF(AND(P15<>0,N15<>0),P15/N15,0)","v":0}]
[null," X ",{"$f":"ROW($C16)-12","v":4},{"$f":"IF(OR($H16=\"\",$I16=\"\",$J16=\"\",$K16=\"\"),\"Заполните все столбцы\",LEFT($H16,2)&\".\"&\"4.\"&LEFT($I16,1)&\".\"&LEFT($J16,1))","v":"Заполните все столбцы"},{"$f":"IFERROR(\"С \"&(MID($D16,4,LEN($D16)))&\" \"&(RIGHT($H16,LEN($H16)-3))&\",\"&(RIGHT($K16,LEN($K16)-2)),\"Заполните все столбцы\")","v":"Заполните все столбцы"},{"$f":"IFERROR(VLOOKUP($I16,'1.1Назв. объ. эл. сетевого хоз.'!$H$2:$J$33,2,0)&\" номинальным током \"&VLOOKUP($J16,'1.1Назв. объ. эл. сетевого хоз.'!$H$2:$J$33,2,0),\"Заполните все столбцы\")","v":"Заполните все столбцы"},"Название объекта",null,null,null,null,2022,null,null,null,null,{"$f":"IF(AND(P16<>0,N16<>0),P16/N16,0)","v":0}]
[null," X ",{"$f":"ROW($C17)-12","v":5},{"$f":"IF(OR($H17=\"\",$I17=\"\",$J17=\"\",$K17=\"\"),\"Заполните все столбцы\",LEFT($H17,2)&\".\"&\"4.\"&LEFT($I17,1)&\".\"&LEFT($J17,1))","v":"Заполните все столбцы"},{"$f":"IFERROR(\"С \"&(MID($D17,4,LEN($D17)))&\" \"&(RIGHT($H17,LEN($H17)-3))&\",\"&(RIGHT($K17,LEN($K17)-2)),\"Заполните все столбцы\")","v":"Заполните все столбцы"},{"$f":"IFERROR(VLOOKUP($I17,'1.1Назв. объ. эл. сетевого хоз.'!$H$2:$J$33,2,0)&\" номинальным током \"&VLOOKUP($J17,'1.1Назв. объ. эл. сетевого хоз.'!$H$2:$J$33,2,0),\"Заполните все столбцы\")","v":"Заполните все столбцы"},"Название объекта",null,null,null,null,2022,null,null,null,null,{"$f":"IF(AND(P17<>0,N17<>0),P17/N17,0)","v":0}]
[null,"TAG",null,null,null,null,"Добавить строки"]

{"sheet":"Ставка 4.4.-4.6.","index":7,"n_rows":18,"n_cols":18,"rows_kept":18,"cut":false,"hidden":false,"merged":[[1,2,3,17],[5,2,5,17]]}
[]
[null,null,"Расходы на строительство введенных в эксплуатацию объектов электросетевого хозяйства для целей технологического присоединения и для целей реализации иных мероприятий инвестиционной программы территориальной сетевой организации"]
[]
[]
[]
[null,null,"ДЛЯ НАСЕЛЕННЫХ ПУНКТОВ ВСЕХ ТЕРРИТОРИЙ"]
[]
[null,null,"N п/п","Технический код ставки","Обозначение ставки","Наименование ставки","Объект электросетевого хозяйства","Территория","Техническое исполнение","Номинальный ток","Количество ячеек","Напряжение","Год ввода объекта","Общая трансформаторная мощность, кВт","Присоединенная максимальная мощность, кВт (указывается только до 670кВт, если больше не указывается)","Расходы на строительство объекта, руб. \n(без НДС)","Наименование папки","Источник финансирования"]
[null,null,1,{"$f":"C$9+1","v":2},{"$f":"D$9+1","v":3},4,5,6,7,8,9,10,11,12,13,14,15,16]
[null,null,"4.",null,null,null,"Распределительные пункты (РП), за исключением комплектных распределительных устройств наружной установки (КРН, КРУН),  комплектные распределительные устройства наружной установки (КРН, КРУН) , переключательные пункты"]
[null," X ",{"$f":"ROW($C11)-12","v":-1},{"$f":"IF(OR($H11=\"\",$I11=\"\",$J11=\"\",$K11=\"\",$L11=\"\"),\"Заполните все столбцы\",LEFT($H11,2)&\".\"&\"4.\"&LEFT($I11,1)&\".\"&LEFT($J11,1)&\".\"&LEFT($K11,1))","v":"Заполните все столбцы"},{"$f":"IFERROR(\"С \"&(MID($D11,4,LEN($D11)))&\" \"&(RIGHT($H11,LEN($H11)-3))&\",\"&(RIGHT($L11,LEN($L11)-2)),\"Заполните все столбцы\")","v":"Заполните все столбцы"},{"$f":"IFERROR(VLOOKUP($I11,'1.1Назв. объ. эл. сетевого хоз.'!$H$2:$J$33,2,0)&\" номинальным током \"&VLOOKUP($J11,'1.1Назв. объ. эл. сетевого хоз.'!$H$2:$J$33,2,0)&\" с количеством ячеек \"&VLOOKUP($K11,'1.1Назв. объ. эл. сетевого хоз.'!$H$2:$J$33,2,0),\"Заполните все столбцы\")","v":"Заполните все столбцы"},"Название объекта",null,null,null,null,null,2022]
[null,"TAG",null,null,null,null,"Добавить строки"]
[null," X ",{"$f":"ROW($C13)-12","v":1},{"$f":"IF(OR($H13=\"\",$I13=\"\",$J13=\"\",$K13=\"\",$L13=\"\"),\"Заполните все столбцы\",LEFT($H13,2)&\".\"&\"4.\"&LEFT($I13,1)&\".\"&LEFT($J13,1)&\".\"&LEFT($K13,1))","v":"Заполните все столбцы"},{"$f":"IFERROR(\"С \"&(MID($D13,4,LEN($D13)))&\" \"&(RIGHT($H13,LEN($H13)-3))&\",\"&(RIGHT($L13,LEN($L13)-2)),\"Заполните все столбцы\")","v":"Заполните все столбцы"},{"$f":"IFERROR(VLOOKUP($I13,'1.1Назв. объ. эл. сетевого хоз.'!$H$2:$J$33,2,0)&\" номинальным током \"&VLOOKUP($J13,'1.1Назв. объ. эл. сетевого хоз.'!$H$2:$J$33,2,0)&\" с количеством ячеек \"&VLOOKUP($K13,'1.1Назв. объ. эл. сетевого хоз.'!$H$2:$J$33,2,0),\"Заполните все столбцы\")","v":"Заполните все столбцы"},"Название объекта",null,null,null,null,null,2022]
[null," X ",{"$f":"ROW($C14)-12","v":2},{"$f":"IF(OR($H14=\"\",$I14=\"\",$J14=\"\",$K14=\"\",$L14=\"\"),\"Заполните все столбцы\",LEFT($H14,2)&\".\"&\"4.\"&LEFT($I14,1)&\".\"&LEFT($J14,1)&\".\"&LEFT($K14,1))","v":"Заполните все столбцы"},{"$f":"IFERROR(\"С \"&(MID($D14,4,LEN($D14)))&\" \"&(RIGHT($H14,LEN($H14)-3))&\",\"&(RIGHT($L14,LEN($L14)-2)),\"Заполните все столбцы\")","v":"Заполните все столбцы"},{"$f":"IFERROR(VLOOKUP($I14,'1.1Назв. объ. эл. сетевого хоз.'!$H$2:$J$33,2,0)&\" номинальным током \"&VLOOKUP($J14,'1.1Назв. объ. эл. сетевого хоз.'!$H$2:$J$33,2,0)&\" с количеством ячеек \"&VLOOKUP($K14,'1.1Назв. объ. эл. сетевого хоз.'!$H$2:$J$33,2,0),\"Заполните все столбцы\")","v":"Заполните все столбцы"},"Название объекта",null,null,null,null,null,2022]
[null," X ",{"$f":"ROW($C15)-12","v":3},{"$f":"IF(OR($H15=\"\",$I15=\"\",$J15=\"\",$K15=\"\",$L15=\"\"),\"Заполните все столбцы\",LEFT($H15,2)&\".\"&\"4.\"&LEFT($I15,1)&\".\"&LEFT($J15,1)&\".\"&LEFT($K15,1))","v":"Заполните все столбцы"},{"$f":"IFERROR(\"С \"&(MID($D15,4,LEN($D15)))&\" \"&(RIGHT($H15,LEN($H15)-3))&\",\"&(RIGHT($L15,LEN($L15)-2)),\"Заполните все столбцы\")","v":"Заполните все столбцы"},{"$f":"IFERROR(VLOOKUP($I15,'1.1Назв. объ. эл. сетевого хоз.'!$H$2:$J$33,2,0)&\" номинальным током \"&VLOOKUP($J15,'1.1Назв. объ. эл. сетевого хоз.'!$H$2:$J$33,2,0)&\" с количеством ячеек \"&VLOOKUP($K15,'1.1Назв. объ. эл. сетевого хоз.'!$H$2:$J$33,2,0),\"Заполните все столбцы\")","v":"Заполните все столбцы"},"Название объекта",null,null,null,null,null,2022]
[null," X ",{"$f":"ROW($C16)-12","v":4},{"$f":"IF(OR($H16=\"\",$I16=\"\",$J16=\"\",$K16=\"\",$L16=\"\"),\"Заполните все столбцы\",LEFT($H16,2)&\".\"&\"4.\"&LEFT($I16,1)&\".\"&LEFT($J16,1)&\".\"&LEFT($K16,1))","v":"Заполните все столбцы"},{"$f":"IFERROR(\"С \"&(MID($D16,4,LEN($D16)))&\" \"&(RIGHT($H16,LEN($H16)-3))&\",\"&(RIGHT($L16,LEN($L16)-2)),\"Заполните все столбцы\")","v":"Заполните все столбцы"},{"$f":"IFERROR(VLOOKUP($I16,'1.1Назв. объ. эл. сетевого хоз.'!$H$2:$J$33,2,0)&\" номинальным током \"&VLOOKUP($J16,'1.1Назв. объ. эл. сетевого хоз.'!$H$2:$J$33,2,0)&\" с количеством ячеек \"&VLOOKUP($K16,'1.1Назв. объ. эл. сетевого хоз.'!$H$2:$J$33,2,0),\"Заполните все столбцы\")","v":"Заполните все столбцы"},"Название объекта",null,null,null,null,null,2022]
[null," X ",{"$f":"ROW($C17)-12","v":5},{"$f":"IF(OR($H17=\"\",$I17=\"\",$J17=\"\",$K17=\"\",$L17=\"\"),\"Заполните все столбцы\",LEFT($H17,2)&\".\"&\"4.\"&LEFT($I17,1)&\".\"&LEFT($J17,1)&\".\"&LEFT($K17,1))","v":"Заполните все столбцы"},{"$f":"IFERROR(\"С \"&(MID($D17,4,LEN($D17)))&\" \"&(RIGHT($H17,LEN($H17)-3))&\",\"&(RIGHT($L17,LEN($L17)-2)),\"Заполните все столбцы\")","v":"Заполните все столбцы"},{"$f":"IFERROR(VLOOKUP($I17,'1.1Назв. объ. эл. сетевого хоз.'!$H$2:$J$33,2,0)&\" номинальным током \"&VLOOKUP($J17,'1.1Назв. объ. эл. сетевого хоз.'!$H$2:$J$33,2,0)&\" с количеством ячеек \"&VLOOKUP($K17,'1.1Назв. объ. эл. сетевого хоз.'!$H$2:$J$33,2,0),\"Заполните все столбцы\")","v":"Заполните все столбцы"},"Название объекта",null,null,null,null,null,2022]
[null,"TAG",null,null,null,null,"Добавить строки"]

{"sheet":"Ставка 5. (ТП без РТП)","index":8,"n_rows":18,"n_cols":18,"rows_kept":18,"cut":false,"hidden":false,"merged":[[1,2,3,17],[5,2,5,17]]}
[]
[null,null,"Расходы на строительство введенных в эксплуатацию объектов электросетевого хозяйства для целей технологического присоединения и для целей реализации иных мероприятий инвестиционной программы территориальной сетевой организации"]
[]
[]
[]
[null,null,"ДЛЯ НАСЕЛЕННЫХ ПУНКТОВ ВСЕХ ТЕРРИТОРИЙ"]
[]
[null,null,"N п/п","Технический код ставки","Обозначение ставки","Наименование ставки","Объект электросетевого хозяйства","Территория","Количество трансформаторов","Мощность трансформаторов","Тип исполнения","Напряжение","Год ввода объекта","Общая трансформаторная мощность, кВт","Присоединенная максимальная мощность, кВт (указывается только до 670кВт, если больше не указывается)","Расходы на строительство объекта, руб. \n(без НДС)","Наименование папки","Источник финансирования"]
[null,null,1,{"$f":"C$9+1","v":2},{"$f":"D$9+1","v":3},4,5,6,7,8,9,10,11,12,13,14,15,16]
[null,null,"5.",null,null,null,"Трансформаторные подстанции (ТП), за исключением распределительных трансформаторных подстанций (РТП), с уровнем напряжения до 35 кВ"]
[null," X ",{"$f":"ROW($C11)-12","v":-1},{"$f":"IF(OR($H11=\"\",$I11=\"\",$J11=\"\",$K11=\"\",$L11=\"\"),\"Заполните все столбцы\",LEFT($H11,2)&\".\"&\"5.\"&LEFT($I11,1)&\".\"&LEFT($J11,2)&\".\"&LEFT($K11,1))","v":"Заполните все столбцы"},{"$f":"IFERROR(\"С \"&(MID($D11,4,LEN($D11)))&\" \"&(RIGHT($H11,LEN($H11)-3))&\",\"&(RIGHT($L11,LEN($L11)-2)),\"Заполните все столбцы\")","v":"Заполните все столбцы"},{"$f":"IFERROR(VLOOKUP($I11,'1.1Назв. объ. эл. сетевого хоз.'!$K$2:$L$35,2,0)&\" \"&VLOOKUP($J11,'1.1Назв. объ. эл. сетевого хоз.'!$K$2:$L$26,2,0)&\" \"&VLOOKUP($K11,'1.1Назв. объ. эл. сетевого хоз.'!$K$2:$L$26,2,0),\"Заполните все столбцы\")","v":"Заполните все столбцы"},null,null,null,null,null,null,2022]
[null,"TAG",null,null,null,null,"Добавить строки"]
[null," X ",{"$f":"ROW($C13)-12","v":1},{"$f":"IF(OR($H13=\"\",$I13=\"\",$J13=\"\",$K13=\"\",$L13=\"\"),\"Заполните все столбцы\",LEFT($H13,2)&\".\"&\"5.\"&LEFT($I13,1)&\".\"&LEFT($J13,2)&\".\"&LEFT($K13,1))","v":"I .5.1.3..2"},{"$f":"IFERROR(\"С \"&(MID($D13,4,LEN($D13)))&\" \"&(RIGHT($H13,LEN($H13)-3))&\",\"&(RIGHT($L13,LEN($L13)-2)),\"Заполните все столбцы\")","v":"С 5.1.3..2  Город, 10/0,4 кВ"},{"$f":"IFERROR(VLOOKUP($I13,'1.1Назв. объ. эл. сетевого хоз.'!$K$2:$L$35,2,0)&\" \"&VLOOKUP($J13,'1.1Назв. объ. эл. сетевого хоз.'!$K$2:$L$26,2,0)&\" \"&VLOOKUP($K13,'1.1Назв. объ. эл. сетевого хоз.'!$K$2:$L$26,2,0),\"Заполните все столбцы\")","v":"однотрансформаторные подстанции (за исключением РТП) мощностью от 100 до 250 кВА включительно шкафного или киоскового типа"},"КТПН-83 10/0,4 кВ 160 кВА ПС \"Стройбаза\"","I ) Город","1) один","3.) от 100 до 250 кВА включительно","2) шкафного или киоскового ","2) 10/0,4 кВ",2022,149,130,726329.31,"5.1.С5.1.2022","Технологическое присоединение"]
[null," X ",{"$f":"ROW($C14)-12","v":2},{"$f":"IF(OR($H14=\"\",$I14=\"\",$J14=\"\",$K14=\"\",$L14=\"\"),\"Заполните все столбцы\",LEFT($H14,2)&\".\"&\"5.\"&LEFT($I14,1)&\".\"&LEFT($J14,2)&\".\"&LEFT($K14,1))","v":"Заполните все столбцы"},{"$f":"IFERROR(\"С \"&(MID($D14,4,LEN($D14)))&\" \"&(RIGHT($H14,LEN($H14)-3))&\",\"&(RIGHT($L14,LEN($L14)-2)),\"Заполните все столбцы\")","v":"Заполните все столбцы"},{"$f":"IFERROR(VLOOKUP($I14,'1.1Назв. объ. эл. сетевого хоз.'!$K$2:$L$35,2,0)&\" \"&VLOOKUP($J14,'1.1Назв. объ. эл. сетевого хоз.'!$K$2:$L$26,2,0)&\" \"&VLOOKUP($K14,'1.1Назв. объ. эл. сетевого хоз.'!$K$2:$L$26,2,0),\"Заполните все столбцы\")","v":"Заполните все столбцы"},null,null,null,null,null,null,2022]
[null," X ",{"$f":"ROW($C15)-12","v":3},{"$f":"IF(OR($H15=\"\",$I15=\"\",$J15=\"\",$K15=\"\",$L15=\"\"),\"Заполните все столбцы\",LEFT($H15,2)&\".\"&\"5.\"&LEFT($I15,1)&\".\"&LEFT($J15,2)&\".\"&LEFT($K15,1))","v":"Заполните все столбцы"},{"$f":"IFERROR(\"С \"&(MID($D15,4,LEN($D15)))&\" \"&(RIGHT($H15,LEN($H15)-3))&\",\"&(RIGHT($L15,LEN($L15)-2)),\"Заполните все столбцы\")","v":"Заполните все столбцы"},{"$f":"IFERROR(VLOOKUP($I15,'1.1Назв. объ. эл. сетевого хоз.'!$K$2:$L$35,2,0)&\" \"&VLOOKUP($J15,'1.1Назв. объ. эл. сетевого хоз.'!$K$2:$L$26,2,0)&\" \"&VLOOKUP($K15,'1.1Назв. объ. эл. сетевого хоз.'!$K$2:$L$26,2,0),\"Заполните все столбцы\")","v":"Заполните все столбцы"},null,null,null,null,null,null,2022]
[null," X ",{"$f":"ROW($C16)-12","v":4},{"$f":"IF(OR($H16=\"\",$I16=\"\",$J16=\"\",$K16=\"\",$L16=\"\"),\"Заполните все столбцы\",LEFT($H16,2)&\".\"&\"5.\"&LEFT($I16,1)&\".\"&LEFT($J16,2)&\".\"&LEFT($K16,1))","v":"Заполните все столбцы"},{"$f":"IFERROR(\"С \"&(MID($D16,4,LEN($D16)))&\" \"&(RIGHT($H16,LEN($H16)-3))&\",\"&(RIGHT($L16,LEN($L16)-2)),\"Заполните все столбцы\")","v":"Заполните все столбцы"},{"$f":"IFERROR(VLOOKUP($I16,'1.1Назв. объ. эл. сетевого хоз.'!$K$2:$L$35,2,0)&\" \"&VLOOKUP($J16,'1.1Назв. объ. эл. сетевого хоз.'!$K$2:$L$26,2,0)&\" \"&VLOOKUP($K16,'1.1Назв. объ. эл. сетевого хоз.'!$K$2:$L$26,2,0),\"Заполните все столбцы\")","v":"Заполните все столбцы"},null,null,null,null,null,null,2022]
[null," X ",{"$f":"ROW($C17)-12","v":5},{"$f":"IF(OR($H17=\"\",$I17=\"\",$J17=\"\",$K17=\"\",$L17=\"\"),\"Заполните все столбцы\",LEFT($H17,2)&\".\"&\"5.\"&LEFT($I17,1)&\".\"&LEFT($J17,2)&\".\"&LEFT($K17,1))","v":"Заполните все столбцы"},{"$f":"IFERROR(\"С \"&(MID($D17,4,LEN($D17)))&\" \"&(RIGHT($H17,LEN($H17)-3))&\",\"&(RIGHT($L17,LEN($L17)-2)),\"Заполните все столбцы\")","v":"Заполните все столбцы"},{"$f":"IFERROR(VLOOKUP($I17,'1.1Назв. объ. эл. сетевого хоз.'!$K$2:$L$35,2,0)&\" \"&VLOOKUP($J17,'1.1Назв. объ. эл. сетевого хоз.'!$K$2:$L$26,2,0)&\" \"&VLOOKUP($K17,'1.1Назв. объ. эл. сетевого хоз.'!$K$2:$L$26,2,0),\"Заполните все столбцы\")","v":"Заполните все столбцы"},null,null,null,null,null,null,2022]
[null,"TAG",null,null,null,null,"Добавить строки"]

{"sheet":"Ставка 6. (РТП)","index":9,"n_rows":18,"n_cols":18,"rows_kept":18,"cut":false,"hidden":false,"merged":[[5,2,5,17],[1,2,3,17]]}
[]
[null,null,"Расходы на строительство введенных в эксплуатацию объектов электросетевого хозяйства для целей технологического присоединения и для целей реализации иных мероприятий инвестиционной программы территориальной сетевой организации"]
[]
[]
[]
[null,null,"ДЛЯ НАСЕЛЕННЫХ ПУНКТОВ ВСЕХ ТЕРРИТОРИЙ"]
[]
[null,null,"N п/п","Технический код ставки","Обозначение ставки","Наименование ставки","Объект электросетевого хозяйства","Территория","Количество трансформаторов","Мощность трансформаторов","Тип исполнения","Напряжение","Год ввода объекта","Общая трансформаторная мощность, кВт","Присоединенная максимальная мощность, кВт (указывается только до 670кВт, если больше не указывается)","Расходы на строительство объекта, руб. \n(без НДС)","Наименование папки","Источник финансирования"]
[null,null,1,{"$f":"C$9+1","v":2},{"$f":"D$9+1","v":3},4,5,6,7,8,{"$f":"J$9+1","v":9},{"$f":"K$9+1","v":10},11,12,13,14,15,16]
[null,null,"6.",null,null,null,"Распределительные трансформаторные подстанции (РТП) с уровнем напряжения до 35 кВ"]
[null," X ",{"$f":"ROW($C11)-12","v":-1},{"$f":"IF(OR($H11=\"\",$I11=\"\",$J11=\"\",$K11=\"\",$L11=\"\"),\"Заполните все столбцы\",LEFT($H11,2)&\".\"&\"6.\"&LEFT($I11,1)&\".\"&LEFT($J11,2)&\".\"&LEFT($K11,1)&\".\")","v":"Заполните все столбцы"},{"$f":"IFERROR(\"С \"&(MID($D11,4,LEN($D11)))&\" \"&(RIGHT($H11,LEN($H11)-3))&\",\"&(RIGHT($L11,LEN($L11)-2)),\"Заполните все столбцы\")","v":"Заполните все столбцы"},{"$f":"IFERROR(VLOOKUP($I11,'1.1Назв. объ. эл. сетевого хоз.'!$N$2:$O$36,2,0)&\" мощностью\"&VLOOKUP($J11,'1.1Назв. объ. эл. сетевого хоз.'!$N$2:$O$27,2,0)&VLOOKUP($K11,'1.1Назв. объ. эл. сетевого хоз.'!$N$2:$O$27,2,0),\"Заполните все столбцы\")","v":"Заполните все столбцы"},"Название объекта",null,null,null,null,null,2022]
[null,"TAG",null,null,null,null,"Добавить строки"]
[null," X ",{"$f":"ROW($C13)-12","v":1},{"$f":"IF(OR($H13=\"\",$I13=\"\",$J13=\"\",$K13=\"\",$L13=\"\"),\"Заполните все столбцы\",LEFT($H13,2)&\".\"&\"6.\"&LEFT($I13,1)&\".\"&LEFT($J13,2)&\".\"&LEFT($K13,1)&\".\")","v":"Заполните все столбцы"},{"$f":"IFERROR(\"С \"&(MID($D13,4,LEN($D13)))&\" \"&(RIGHT($H13,LEN($H13)-3))&\",\"&(RIGHT($L13,LEN($L13)-2)),\"Заполните все столбцы\")","v":"Заполните все столбцы"},{"$f":"IFERROR(VLOOKUP($I13,'1.1Назв. объ. эл. сетевого хоз.'!$N$2:$O$36,2,0)&\" мощностью\"&VLOOKUP($J13,'1.1Назв. объ. эл. сетевого хоз.'!$N$2:$O$27,2,0)&VLOOKUP($K13,'1.1Назв. объ. эл. сетевого хоз.'!$N$2:$O$27,2,0),\"Заполните все столбцы\")","v":"Заполните все столбцы"},"Название объекта",null,null,null,null,null,2022]
[null," X ",{"$f":"ROW($C14)-12","v":2},{"$f":"IF(OR($H14=\"\",$I14=\"\",$J14=\"\",$K14=\"\",$L14=\"\"),\"Заполните все столбцы\",LEFT($H14,2)&\".\"&\"6.\"&LEFT($I14,1)&\".\"&LEFT($J14,2)&\".\"&LEFT($K14,1)&\".\")","v":"Заполните все столбцы"},{"$f":"IFERROR(\"С \"&(MID($D14,4,LEN($D14)))&\" \"&(RIGHT($H14,LEN($H14)-3))&\",\"&(RIGHT($L14,LEN($L14)-2)),\"Заполните все столбцы\")","v":"Заполните все столбцы"},{"$f":"IFERROR(VLOOKUP($I14,'1.1Назв. объ. эл. сетевого хоз.'!$N$2:$O$36,2,0)&\" мощностью\"&VLOOKUP($J14,'1.1Назв. объ. эл. сетевого хоз.'!$N$2:$O$27,2,0)&VLOOKUP($K14,'1.1Назв. объ. эл. сетевого хоз.'!$N$2:$O$27,2,0),\"Заполните все столбцы\")","v":"Заполните все столбцы"},"Название объекта",null,null,null,null,null,2022]
[null," X ",{"$f":"ROW($C15)-12","v":3},{"$f":"IF(OR($H15=\"\",$I15=\"\",$J15=\"\",$K15=\"\",$L15=\"\"),\"Заполните все столбцы\",LEFT($H15,2)&\".\"&\"6.\"&LEFT($I15,1)&\".\"&LEFT($J15,2)&\".\"&LEFT($K15,1)&\".\")","v":"Заполните все столбцы"},{"$f":"IFERROR(\"С \"&(MID($D15,4,LEN($D15)))&\" \"&(RIGHT($H15,LEN($H15)-3))&\",\"&(RIGHT($L15,LEN($L15)-2)),\"Заполните все столбцы\")","v":"Заполните все столбцы"},{"$f":"IFERROR(VLOOKUP($I15,'1.1Назв. объ. эл. сетевого хоз.'!$N$2:$O$36,2,0)&\" мощностью\"&VLOOKUP($J15,'1.1Назв. объ. эл. сетевого хоз.'!$N$2:$O$27,2,0)&VLOOKUP($K15,'1.1Назв. объ. эл. сетевого хоз.'!$N$2:$O$27,2,0),\"Заполните все столбцы\")","v":"Заполните все столбцы"},"Название объекта",null,null,null,null,null,2022]
[null," X ",{"$f":"ROW($C16)-12","v":4},{"$f":"IF(OR($H16=\"\",$I16=\"\",$J16=\"\",$K16=\"\",$L16=\"\"),\"Заполните все столбцы\",LEFT($H16,2)&\".\"&\"6.\"&LEFT($I16,1)&\".\"&LEFT($J16,2)&\".\"&LEFT($K16,1)&\".\")","v":"Заполните все столбцы"},{"$f":"IFERROR(\"С \"&(MID($D16,4,LEN($D16)))&\" \"&(RIGHT($H16,LEN($H16)-3))&\",\"&(RIGHT($L16,LEN($L16)-2)),\"Заполните все столбцы\")","v":"Заполните все столбцы"},{"$f":"IFERROR(VLOOKUP($I16,'1.1Назв. объ. эл. сетевого хоз.'!$N$2:$O$36,2,0)&\" мощностью\"&VLOOKUP($J16,'1.1Назв. объ. эл. сетевого хоз.'!$N$2:$O$27,2,0)&VLOOKUP($K16,'1.1Назв. объ. эл. сетевого хоз.'!$N$2:$O$27,2,0),\"Заполните все столбцы\")","v":"Заполните все столбцы"},"Название объекта",null,null,null,null,null,2022]
[null," X ",{"$f":"ROW($C17)-12","v":5},{"$f":"IF(OR($H17=\"\",$I17=\"\",$J17=\"\",$K17=\"\",$L17=\"\"),\"Заполните все столбцы\",LEFT($H17,2)&\".\"&\"6.\"&LEFT($I17,1)&\".\"&LEFT($J17,2)&\".\"&LEFT($K17,1)&\".\")","v":"Заполните все столбцы"},{"$f":"IFERROR(\"С \"&(MID($D17,4,LEN($D17)))&\" \"&(RIGHT($H17,LEN($H17)-3))&\",\"&(RIGHT($L17,LEN($L17)-2)),\"Заполните все столбцы\")","v":"Заполните все столбцы"},{"$f":"IFERROR(VLOOKUP($I17,'1.1Назв. объ. эл. сетевого хоз.'!$N$2:$O$36,2,0)&\" мощностью\"&VLOOKUP($J17,'1.1Назв. объ. эл. сетевого хоз.'!$N$2:$O$27,2,0)&VLOOKUP($K17,'1.1Назв. объ. эл. сетевого хоз.'!$N$2:$O$27,2,0),\"Заполните все столбцы\")","v":"Заполните все столбцы"},"Название объекта",null,null,null,null,null,2022]
[null,"TAG",null,null,null,null,"Добавить строки"]

{"sheet":"Ставка 7. (ТП>35)","index":10,"n_rows":18,"n_cols":18,"rows_kept":18,"cut":false,"hidden":false,"merged":[[5,2,5,17],[1,2,3,17]]}
[]
[null,null,"Расходы на строительство введенных в эксплуатацию объектов электросетевого хозяйства для целей технологического присоединения и для целей реализации иных мероприятий инвестиционной программы территориальной сетевой организации"]
[]
[]
[]
[null,null,"ДЛЯ НАСЕЛЕННЫХ ПУНКТОВ ВСЕХ ТЕРРИТОРИЙ"]
[]
[null,null,"N п/п","Технический код ставки","Обозначение ставки","Наименование ставки","Объект электросетевого хозяйства","Территория","Количество трансформаторов","Мощность трансформаторов","Тип исполнения","Напряжение","Год ввода объекта","Общая трансформаторная мощность, кВт","Присоединенная максимальная мощность, кВт (указывается только до 670кВт, если больше не указывается)","Расходы на строительство объекта, руб. \n(без НДС)","Наименование папки","Источник финансирования"]
[null,null,1,{"$f":"C$9+1","v":2},{"$f":"D$9+1","v":3},4,5,6,7,8,{"$f":"J$9+1","v":9},{"$f":"K$9+1","v":10},11,12,13,14,15,16]
[null,null,"7.",null,null,null,null,null,"Подстанции уровнем напряжения 35 кВ и выше"]
[null," X ",{"$f":"ROW($C11)-12","v":-1},{"$f":"IF(OR($H11=\"\",$I11=\"\",$J11=\"\",$K11=\"\",$L11=\"\"),\"Заполните все столбцы\",LEFT($H11,2)&\".\"&\"7.\"&LEFT($I11,1)&\".\"&LEFT($J11,2)&\".\"&LEFT($K11,1))","v":"Заполните все столбцы"},{"$f":"IFERROR(\"С \"&(MID($D11,4,LEN($D11)))&\" \"&(RIGHT($H11,LEN($H11)-3))&\",\"&(RIGHT($L11,LEN($L11)-2)),\"Заполните все столбцы\")","v":"Заполните все столбцы"},{"$f":"IFERROR(VLOOKUP($I11,'1.1Назв. объ. эл. сетевого хоз.'!$Q$2:$R$33,2,0)&\" мощностью \"&VLOOKUP($J11,'1.1Назв. объ. эл. сетевого хоз.'!$Q$2:$R$33,2,0)&VLOOKUP($K11,'1.1Назв. объ. эл. сетевого хоз.'!$Q$2:$R$33,2,0),\"Заполните все столбцы\")","v":"Заполните все столбцы"},"Название объекта",null,null,null,null,null,2022]
[null,"TAG",null,null,null,null,"Добавить строки"]
[null," X ",{"$f":"ROW($C13)-12","v":1},{"$f":"IF(OR($H13=\"\",$I13=\"\",$J13=\"\",$K13=\"\",$L13=\"\"),\"Заполните все столбцы\",LEFT($H13,2)&\".\"&\"7.\"&LEFT($I13,1)&\".\"&LEFT($J13,2)&\".\"&LEFT($K13,1))","v":"Заполните все столбцы"},{"$f":"IFERROR(\"С \"&(MID($D13,4,LEN($D13)))&\" \"&(RIGHT($H13,LEN($H13)-3))&\",\"&(RIGHT($L13,LEN($L13)-2)),\"Заполните все столбцы\")","v":"Заполните все столбцы"},{"$f":"IFERROR(VLOOKUP($I13,'1.1Назв. объ. эл. сетевого хоз.'!$Q$2:$R$33,2,0)&\" мощностью \"&VLOOKUP($J13,'1.1Назв. объ. эл. сетевого хоз.'!$Q$2:$R$33,2,0)&VLOOKUP($K13,'1.1Назв. объ. эл. сетевого хоз.'!$Q$2:$R$33,2,0),\"Заполните все столбцы\")","v":"Заполните все столбцы"},"Название объекта",null,null,null,null,null,2022]
[null," X ",{"$f":"ROW($C14)-12","v":2},{"$f":"IF(OR($H14=\"\",$I14=\"\",$J14=\"\",$K14=\"\",$L14=\"\"),\"Заполните все столбцы\",LEFT($H14,2)&\".\"&\"7.\"&LEFT($I14,1)&\".\"&LEFT($J14,2)&\".\"&LEFT($K14,1))","v":"Заполните все столбцы"},{"$f":"IFERROR(\"С \"&(MID($D14,4,LEN($D14)))&\" \"&(RIGHT($H14,LEN($H14)-3))&\",\"&(RIGHT($L14,LEN($L14)-2)),\"Заполните все столбцы\")","v":"Заполните все столбцы"},{"$f":"IFERROR(VLOOKUP($I14,'1.1Назв. объ. эл. сетевого хоз.'!$Q$2:$R$33,2,0)&\" мощностью \"&VLOOKUP($J14,'1.1Назв. объ. эл. сетевого хоз.'!$Q$2:$R$33,2,0)&VLOOKUP($K14,'1.1Назв. объ. эл. сетевого хоз.'!$Q$2:$R$33,2,0),\"Заполните все столбцы\")","v":"Заполните все столбцы"},"Название объекта",null,null,null,null,null,2022]
[null," X ",{"$f":"ROW($C15)-12","v":3},{"$f":"IF(OR($H15=\"\",$I15=\"\",$J15=\"\",$K15=\"\",$L15=\"\"),\"Заполните все столбцы\",LEFT($H15,2)&\".\"&\"7.\"&LEFT($I15,1)&\".\"&LEFT($J15,2)&\".\"&LEFT($K15,1))","v":"Заполните все столбцы"},{"$f":"IFERROR(\"С \"&(MID($D15,4,LEN($D15)))&\" \"&(RIGHT($H15,LEN($H15)-3))&\",\"&(RIGHT($L15,LEN($L15)-2)),\"Заполните все столбцы\")","v":"Заполните все столбцы"},{"$f":"IFERROR(VLOOKUP($I15,'1.1Назв. объ. эл. сетевого хоз.'!$Q$2:$R$33,2,0)&\" мощностью \"&VLOOKUP($J15,'1.1Назв. объ. эл. сетевого хоз.'!$Q$2:$R$33,2,0)&VLOOKUP($K15,'1.1Назв. объ. эл. сетевого хоз.'!$Q$2:$R$33,2,0),\"Заполните все столбцы\")","v":"Заполните все столбцы"},"Название объекта",null,null,null,null,null,2022]
[null," X ",{"$f":"ROW($C16)-12","v":4},{"$f":"IF(OR($H16=\"\",$I16=\"\",$J16=\"\",$K16=\"\",$L16=\"\"),\"Заполните все столбцы\",LEFT($H16,2)&\".\"&\"7.\"&LEFT($I16,1)&\".\"&LEFT($J16,2)&\".\"&LEFT($K16,1))","v":"Заполните все столбцы"},{"$f":"IFERROR(\"С \"&(MID($D16,4,LEN($D16)))&\" \"&(RIGHT($H16,LEN($H16)-3))&\",\"&(RIGHT($L16,LEN($L16)-2)),\"Заполните все столбцы\")","v":"Заполните все столбцы"},{"$f":"IFERROR(VLOOKUP($I16,'1.1Назв. объ. эл. сетевого хоз.'!$Q$2:$R$33,2,0)&\" мощностью \"&VLOOKUP($J16,'1.1Назв. объ. эл. сетевого хоз.'!$Q$2:$R$33,2,0)&VLOOKUP($K16,'1.1Назв. объ. эл. сетевого хоз.'!$Q$2:$R$33,2,0),\"Заполните все столбцы\")","v":"Заполните все столбцы"},"Название объекта",null,null,null,null,null,2022]
[null," X ",{"$f":"ROW($C17)-12","v":5},{"$f":"IF(OR($H17=\"\",$I17=\"\",$J17=\"\",$K17=\"\",$L17=\"\"),\"Заполните все столбцы\",LEFT($H17,2)&\".\"&\"7.\"&LEFT($I17,1)&\".\"&LEFT($J17,2)&\".\"&LEFT($K17,1))","v":"Заполните все столбцы"},{"$f":"IFERROR(\"С \"&(MID($D17,4,LEN($D17)))&\" \"&(RIGHT($H17,LEN($H17)-3))&\",\"&(RIGHT($L17,LEN($L17)-2)),\"Заполните все столбцы\")","v":"Заполните все столбцы"},{"$f":"IFERROR(VLOOKUP($I17,'1.1Назв. объ. эл. сетевого хоз.'!$Q$2:$R$33,2,0)&\" мощностью \"&VLOOKUP($J17,'1.1Назв. объ. эл. сетевого хоз.'!$Q$2:$R$33,2,0)&VLOOKUP($K17,'1.1Назв. объ. эл. сетевого хоз.'!$Q$2:$R$33,2,0),\"Заполните все столбцы\")","v":"Заполните все столбцы"},"Название объекта",null,null,null,null,null,2022]
[null,"TAG",null,null,null,null,"Добавить строки"]

{"sheet":"Ставка 8. (ПУ)","index":11,"n_rows":18,"n_cols":18,"rows_kept":18,"cut":false,"hidden":false,"merged":[[5,2,5,17],[1,2,3,17]]}
[]
[null,null,"Расходы на строительство введенных в эксплуатацию объектов электросетевого хозяйства для целей технологического присоединения и для целей реализации иных мероприятий инвестиционной программы территориальной сетевой организации"]
[]
[]
[]
[null,null,"ДЛЯ НАСЕЛЕННЫХ ПУНКТОВ ВСЕХ ТЕРРИТОРИЙ"]
[]
[null,null,"N п/п","Технический код ставки","Обозначение ставки","Наименование ставки","Объект электросетевого хозяйства","Территория","Количество фаз","Способ подключения","Напряжение","Год ввода объекта","Количество точек учета, шт.","Присоединенная максимальная мощность, кВт (указывается только до 670кВт, если больше не указывается)","Общие расходы на обеспечение средствами коммерческого учета электрической энергии (мощности), руб. \n(без НДС)","Расходы на обеспечение средствами коммерческого учета электрической энергии (мощности), руб./шт.","Наименование папки","Источник финансирования"]
[null,null,1,{"$f":"C$9+1","v":2},{"$f":"D$9+1","v":3},4,5,6,7,8,9,10,11,12,13,14,15,16]
[null,null,"8.",null,null,null,"Обеспечение средствами коммерческого учета электрической энергии (мощности)"]
[null," X ",{"$f":"ROW($C11)-12","v":-1},{"$f":"IF(OR($H11=\"\",$I11=\"\",$J11=\"\",$K11=\"\"),\"Заполните все столбцы\",LEFT($H11,2)&\".\"&\"8.\"&LEFT($I11,1)&\".\"&LEFT($J11,1))","v":"Заполните все столбцы"},{"$f":"IFERROR(\"С \"&(MID($D11,4,LEN($D11)))&\" \"&(RIGHT($H11,LEN($H11)-3))&\",\"&(RIGHT($K11,LEN($K11)-2)),\"Заполните все столбцы\")","v":"Заполните все столбцы"},{"$f":"IFERROR(\"средства коммерческого учета электрической энергии (мощности) \"&VLOOKUP($I11,'1.1Назв. объ. эл. сетевого хоз.'!$T$2:$U$33,2,0)&\" \"&VLOOKUP($J11,'1.1Назв. объ. эл. сетевого хоз.'!$T$2:$U$33,2,0),\"Заполните все столбцы\")","v":"Заполните все столбцы"},"Название объекта и(или) адрес",null,null,null,null,2022,null,null,null,{"$f":"IF(AND(O11<>0,M11<>0),O11/M11,0)","v":0},null,"Инвестиционная программа"]
[null,"TAG",null,null,null,null,"Добавить строки"]
[null," X ",{"$f":"ROW($C13)-12","v":1},{"$f":"IF(OR($H13=\"\",$I13=\"\",$J13=\"\",$K13=\"\"),\"Заполните все столбцы\",LEFT($H13,2)&\".\"&\"8.\"&LEFT($I13,1)&\".\"&LEFT($J13,1))","v":"I .8.2.2"},{"$f":"IFERROR(\"С \"&(MID($D13,4,LEN($D13)))&\" \"&(RIGHT($H13,LEN($H13)-3))&\",\"&(RIGHT($K13,LEN($K13)-2)),\"Заполните все столбцы\")","v":"С 8.2.2  Город, 1 - 20  кВ"},{"$f":"IFERROR(\"средства коммерческого учета электрической энергии (мощности) \"&VLOOKUP($I13,'1.1Назв. объ. эл. сетевого хоз.'!$T$2:$U$33,2,0)&\" \"&VLOOKUP($J13,'1.1Назв. объ. эл. сетевого хоз.'!$T$2:$U$33,2,0),\"Заполните все столбцы\")","v":"средства коммерческого учета электрической энергии (мощности) трехфазные полукосвенного включения"},"КТПН-83 10/0,4 кВ 160 кВА ПС \"Стройбаза\"","I ) Город","2) трехфазные","2) полукосвенного включения","2) 1 - 20  кВ",2022,1,130,5688.57,{"$f":"IF(AND(O13<>0,M13<>0),O13/M13,0)","v":5688.57},"8.С8.2022","Технологическое присоединение"]
[null," X ",{"$f":"ROW($C14)-12","v":2},{"$f":"IF(OR($H14=\"\",$I14=\"\",$J14=\"\",$K14=\"\"),\"Заполните все столбцы\",LEFT($H14,2)&\".\"&\"8.\"&LEFT($I14,1)&\".\"&LEFT($J14,1))","v":"Заполните все столбцы"},{"$f":"IFERROR(\"С \"&(MID($D14,4,LEN($D14)))&\" \"&(RIGHT($H14,LEN($H14)-3))&\",\"&(RIGHT($K14,LEN($K14)-2)),\"Заполните все столбцы\")","v":"Заполните все столбцы"},{"$f":"IFERROR(\"средства коммерческого учета электрической энергии (мощности) \"&VLOOKUP($I14,'1.1Назв. объ. эл. сетевого хоз.'!$T$2:$U$33,2,0)&\" \"&VLOOKUP($J14,'1.1Назв. объ. эл. сетевого хоз.'!$T$2:$U$33,2,0),\"Заполните все столбцы\")","v":"Заполните все столбцы"},"Название объекта и(или) адрес",null,null,null,null,2022,null,null,null,{"$f":"IF(AND(O14<>0,M14<>0),O14/M14,0)","v":0}]
[null," X ",{"$f":"ROW($C15)-12","v":3},{"$f":"IF(OR($H15=\"\",$I15=\"\",$J15=\"\",$K15=\"\"),\"Заполните все столбцы\",LEFT($H15,2)&\".\"&\"8.\"&LEFT($I15,1)&\".\"&LEFT($J15,1))","v":"Заполните все столбцы"},{"$f":"IFERROR(\"С \"&(MID($D15,4,LEN($D15)))&\" \"&(RIGHT($H15,LEN($H15)-3))&\",\"&(RIGHT($K15,LEN($K15)-2)),\"Заполните все столбцы\")","v":"Заполните все столбцы"},{"$f":"IFERROR(\"средства коммерческого учета электрической энергии (мощности) \"&VLOOKUP($I15,'1.1Назв. объ. эл. сетевого хоз.'!$T$2:$U$33,2,0)&\" \"&VLOOKUP($J15,'1.1Назв. объ. эл. сетевого хоз.'!$T$2:$U$33,2,0),\"Заполните все столбцы\")","v":"Заполните все столбцы"},"Название объекта и(или) адрес",null,null,null,null,2022,null,null,null,{"$f":"IF(AND(O15<>0,M15<>0),O15/M15,0)","v":0}]
[null," X ",{"$f":"ROW($C16)-12","v":4},{"$f":"IF(OR($H16=\"\",$I16=\"\",$J16=\"\",$K16=\"\"),\"Заполните все столбцы\",LEFT($H16,2)&\".\"&\"8.\"&LEFT($I16,1)&\".\"&LEFT($J16,1))","v":"Заполните все столбцы"},{"$f":"IFERROR(\"С \"&(MID($D16,4,LEN($D16)))&\" \"&(RIGHT($H16,LEN($H16)-3))&\",\"&(RIGHT($K16,LEN($K16)-2)),\"Заполните все столбцы\")","v":"Заполните все столбцы"},{"$f":"IFERROR(\"средства коммерческого учета электрической энергии (мощности) \"&VLOOKUP($I16,'1.1Назв. объ. эл. сетевого хоз.'!$T$2:$U$33,2,0)&\" \"&VLOOKUP($J16,'1.1Назв. объ. эл. сетевого хоз.'!$T$2:$U$33,2,0),\"Заполните все столбцы\")","v":"Заполните все столбцы"},"Название объекта и(или) адрес",null,null,null,null,2022,null,null,null,{"$f":"IF(AND(O16<>0,M16<>0),O16/M16,0)","v":0}]
[null," X ",{"$f":"ROW($C17)-12","v":5},{"$f":"IF(OR($H17=\"\",$I17=\"\",$J17=\"\",$K17=\"\"),\"Заполните все столбцы\",LEFT($H17,2)&\".\"&\"8.\"&LEFT($I17,1)&\".\"&LEFT($J17,1))","v":"Заполните все столбцы"},{"$f":"IFERROR(\"С \"&(MID($D17,4,LEN($D17)))&\" \"&(RIGHT($H17,LEN($H17)-3))&\",\"&(RIGHT($K17,LEN($K17)-2)),\"Заполните все столбцы\")","v":"Заполните все столбцы"},{"$f":"IFERROR(\"средства коммерческого учета электрической энергии (мощности) \"&VLOOKUP($I17,'1.1Назв. объ. эл. сетевого хоз.'!$T$2:$U$33,2,0)&\" \"&VLOOKUP($J17,'1.1Назв. объ. эл. сетевого хоз.'!$T$2:$U$33,2,0),\"Заполните все столбцы\")","v":"Заполните все столбцы"},"Название объекта и(или) адрес",null,null,null,null,2022,null,null,null,{"$f":"IF(AND(O17<>0,M17<>0),O17/M17,0)","v":0}]
[null,"TAG",null,null,null,null,"Добавить строки"]

{"sheet":"Названия ТСО+Ист. фин. тех.лист","index":12,"n_rows":48,"n_cols":2,"rows_kept":48,"cut":false,"hidden":true,"merged":[]}
["Наименование сетевой организации, к которой непосредственно присоединен потребитель","Источник финансирования"]
["Филиал ОАО \"РЖД\" Трансэнерго Свердловская дирекция по энергообеспечению (по сетям Ишимской, Егоршинской, Серовской, Тюменской дистанций электроснабжения)","Инвестиционная программа"]
["АО  \"Сибирско-Уральская энергетическая компания\"","Технологическое присоединение"]
["Филиал \"Уральский\" АО \"Оборонэнерго\""]
["ООО \"ДСК-Энерго\""]
["ООО \"РемЭнергоСтройСервис\""]
["ООО \"Тобольскпромэнергосеть\""]
["ООО \"Транзит-Электро-Тюмень\""]
["ООО \"Тюменская электросетевая компания\" "]
["ООО  \"Элтранс\"   "]
["ООО \"Агентство Интеллект-Сервис\" "]
["ООО \"Альтера\" "]
["ООО Сетевая компания \"Восток\" "]
["ООО \"Дорстрой\""]
["ООО \"Региональная энергетическая компания\""]
["АО \"Россети Тюмень\""]
["ООО \"ТюменьСеть\""]
["ООО \"Элеконт\""]
["АО \"Городские электрические сети\" г.Нижневартовск"]
["АО \"Варьеганэнергонефть\""]
["ООО \"МегионЭнергоНефть\""]
["ООО \"Сургутские городские электрические сети\""]
["АО \"Югорская территориальная энергетическая компания - Региональные сети\""]
["ООО \"ЭЛЕК\""]
["АО \"Югорская региональная электросетевая компания\" "]
["АО \"Аэропорт Сургут\" "]
["Филиал ОАО \"РЖД\" Трансэнерго Свердловская дирекция по энергообеспечению (по сетям Сургутской дистанции электроснабжения)"]
["ООО \"Газпром трансгаз Сургут\""]
["ПАО \"Сургутнефтегаз\""]
["АО «ННК - Нижневартовское нефтегазодобывающее предприятие» (АО «ННК - ННП»)"]
["МУП \"Сургутские районные электрические сети\" муниципального образования Сургутский район"]
["АО \"Черногорэнерго\""]
["ООО \"Луч-Электро\""]
["ООО \"РН-Юганскнефтегаз\""]
["ООО \"Газпром энерго\" "]
["ООО \"Энергонефть Томск\""]
["ООО \"Газпромнефть-Хантос\""]
["ООО \"Ханты-Мансийские городские электрические сети\""]
["АО \"Вынгапуровский тепловодоканал\""]
["АО \"Уренгойгорэлектросеть\""]
["АО \"Ямальская железнодорожная компания\" "]
["ООО \"Газпромнефть Энергосистемы\""]
["АО \"Энерго-Газ-Ноябрьск\""]
["АО \"НордЭнерджиСистемс\""]
["МУП муниципального округа Надымский район Ямало-Ненецкого автономного округа \"Надымские городские электрические сети\""]
["ООО \"СеверСетьРазвитие\" "]
["АО \"Распределительная сетевая компания Ямала\""]
["АО \"Губкинские городские электрические сети\""]

{"sheet":"Teh_Sheet","index":13,"n_rows":16,"n_cols":48,"rows_kept":16,"cut":false,"hidden":true,"merged":[[1,44,1,47],[1,2,1,8],[1,12,1,18],[1,32,1,36],[1,38,1,42],[1,20,1,24],[1,26,1,30]]}
[]
[null,null,"2. воздушные линии",null,null,null,null,null,null,null,null,null,"3. кабельные\n линии",null,null,null,null,null,null,null," 4. пункты секционирования (реклоузеры, распределительные пункты, переключательные пункты)",null,null,null,null,null," 5. трансформаторные подстанции (ТП), за исключением распределительных трансформаторных подстанций (РТП), с уровнем напряжения до 35 кВ",null,null,null,null,null,"6. распределительные трансформаторные подстанции (РТП) с уровнем напряжения до 35 кВ",null,null,null,null,null,"7. подстанции уровнем напряжения 35 кВ и выше",null,null,null,null,null,"8. обеспечение средствами коммерческого учета электрической энергии (мощности)"]
["Ст",null,"территория","опоры","изоляция","материал","сечение","количество цепей","напряжение","напряжение 2)","напряжение 2.)",null,"территория","способ прокладки","вид жилы","изоляция","сечение","количество кабелей","напряжение",null,"территория","техническое исполнение","номинальный ток","Количество ячеек","напряжение",null,"Территория","Количество трансформаторов","Мощность трансформаторов","Тип исполнения","Напряжение",null,"Территория","Количество трансформаторов","Мощность трансформаторов","Тип исполнения","Напряжение",null,"территория","количество трансформаторов","Мощность трансформаторов","Тип исполнения","Напряжение",null,"территория","Количество фаз","Способ подключения","Напряжение"]
["1)",null,"I ) Город","1) Деревянные","1) Изолированый","1) Медный","1) до 50 квадратных мм включительно","1) Одноцепные ","1) 0,4 кВ и ниже","1) 0,4 кВ и ниже","3) 27,5 - 60 кВ",null,"I ) Город","1) траншея","1) одножильный","1) резиновая или пластмассовая","1) до 50 квадратных мм включительно","1) один","1) 0,4 кВ и ниже",null,"I ) Город","1) реклоузер","1) до 100 А","1) до 5 включительно","1) 0,4 кВ и ниже",null,"I ) Город","1) один","1.) до 25 кВА включительно","1) столбового/мачтового","1) 6/0,4 кВ",null,"I ) Город","1) один","1.) до 25 кВА включительно","1) открытого","1) 6(10)/0,4 кВ",null,"I ) Город","1) один","1.) до 6,3 МВА включительно","1) открытого","1) 35/6(10) кВ",null,"I ) Город","1) однофазные","1) прямого включения","1) 0,4 кВ и ниже"]
["2)",null,"II) Не город","2) Металлические","2) Неизолированный","2) Стальной","2) от 50 до 100 квадратных мм включительно","2) Двухцепные","2) 1 - 20  кВ","2) 1 - 20  кВ","4) 110 кВ и выше",null,"II) Не город","2) блоки","2) многожильный","2) бумажная","2)  от 50 до 100 квадратных мм включительно","2) два","2) 1 - 10  кВ",null,"II) Не город","2) линейные разъединители","2) от 100 до 250 А включительно","2) от 5 до 10 включительно","2) 1 - 20  кВ",null,"II) Не город","2) два","2.) от 25 до 100 кВА включительно","2) шкафного или киоскового ","2) 10/0,4 кВ",null,"II) Не город","1) два","2.) от 25 до 100 кВА включительно","2) закрытого ","2) 20/0,4 кВ",null,"II) Не город","2) два","2.) от 6,3 МВА до 10 МВА включительно","2) закрытого ","2) 35/0,4 кВ",null,"II) Не город","2) трехфазные","2) полукосвенного включения","2) 1 - 20  кВ"]
["3)",null,null,"2.1) Металлические, за исключением многогранных",null,"3) Сталеалюминиевый","3) от 100 до 200 квадратных мм включительно",null,"3) 27,5 - 60 кВ",null,null,null,null,"3) каналы",null,null,"3) от 100 до 200 квадратных мм включительно","3) три","3) 15 - 20 кВ",null,null,"3) выключатели нагрузки","3) от 250 до 500 А включительно","3) от 10 до 15 включительно","3) 35 кВ",null,null,null,"3.) от 100 до 250 кВА включительно","3) блочного","3) 20/0,4 кВ",null,null,null,"3.) от 100 до 250 кВА включительно",null,null,null,null,null,"3.) от 10 МВА до 16 МВА включительно",null,"3) 110/35 кВ",null,null,null,"3) косвенного включения","3) 35 кВ"]
["4)",null,null,"2.2) Металлические многогранные",null,"4) Алюминиевый","4) от 200 до 500 квадратных мм включительно",null,"4) 110 кВ и выше",null,null,null,null,"4) туннели и коллекторы",null,null,"4) от 200 до 250 квадратных мм включительно","4) четыре","4) 27,5 - 60 кВ",null,null,"4) распределительные пункты, за исключением КРН, КРУН","4) от 500 до 1000 А включительно","4) свыше 15","4) 110 кВ и выше",null,null,null,"4.) от 250 до 400 кВА включительно","4) встроенного","4) 6/10\n(10/6) кВ",null,null,null,"4.) от 250 до 400 кВА включительно",null,null,null,null,null,"4.) от 16 МВА до 25 МВА включительно",null,"4) 110/6(10) кВ",null,null,null,null,"4) 110 кВ и выше"]
["5)",null,null,"3) Железобетонные",null,null,"5) от 500 до 800 квадратных мм включительно",null,null,null,null,null,null,"5) галереи и эстакады",null,null,"5) от 250 до 300 квадратных мм включительно","5) более четырех","5) 110 кВ и выше",null,null,"5) КРН, КРУН","5) свыше 1000 А",null,null,null,null,null,"5.) от 400 до 630 кВА включительно",null,"5) 10/20\n(20/10) кВ",null,null,null,"5.) от 400 до 630 кВА включительно",null,null,null,null,null,"5.) от 25 МВА до 32 МВА включительно",null,"5) 110/35/6(10) кВ"]
["6)",null,null,null,null,null,"6) свыше 800 квадратных мм",null,null,null,null,null,null,"6) метод горизонтального наклонного бурения",null,null,"6) от 300 до 400 квадратных мм включительно",null,null,null,null,"6) переключательные пункты",null,null,null,null,null,null,"6.) от 630 кВА до 1000 кВА",null,"6) 6/20\n(20/6) кВ",null,null,null,"6.) от 630 кВА до 1000 кВА",null,null,null,null,null,"6.) от 32 МВА до 40 МВА включительно"]
["7)",null,null,null,null,null,null,null,null,null,null,null,null,"7) подводная прокладка",null,null,"7) от 400 до 500 квадратных мм включительно",null,null,null,null,null,null,null,null,null,null,null,"7.) от 1000 кВА до 1250 кВА",null,null,null,null,null,"7.) от 1000 кВА до 1250 кВА",null,null,null,null,null,"7.) от 40 МВА до 63 МВА включительно"]
["8)",null,null,null,null,null,null,null,null,null,null,null,null,null,null,null,"8) от 500 до 800 квадратных мм включительно",null,null,null,null,null,null,null,null,null,null,null,"8.) от 1250 кВА до 1600 кВА включительно",null,null,null,null,null,"8.) от 1250 кВА до 1600 кВА включительно",null,null,null,null,null,"8.) от 63 МВА до 80 МВА включительно"]
["9)",null,null,null,null,null,null,null,null,null,null,null,null,null,null,null,"9) свыше 800 квадратных мм",null,null,null,null,null,null,null,null,null,null,null,"9.) от 1600 кВА до 2000 кВА включительно",null,null,null,null,null,"9.) от 1600 кВА до 2000 кВА включительно",null,null,null,null,null,"9.) от 80 МВА до 100 МВА включительно"]
["10)",null,null,null,null,null,null,null,null,null,null,null,null,null,null,null,null,null,null,null,null,null,null,null,null,null,null,null,"10) от 2000 кВА до 2500 кВА включительно",null,null,null,null,null,"10) от 2000 кВА до 2500 кВА включительно",null,null,null,null,null,"10) свыше 100 МВА"]
["11)",null,null,null,null,null,null,null,null,null,null,null,null,null,null,null,null,null,null,null,null,null,null,null,null,null,null,null,"11) от 2500 кВА до 3150 кВА включительно",null,null,null,null,null,"11) от 2500 кВА до 3150 кВА включительно"]
["12)",null,null,null,null,null,null,null,null,null,null,null,null,null,null,null,null,null,null,null,null,null,null,null,null,null,null,null,"12) от 3150 кВА до 4000 кВА включительно",null,null,null,null,null,"12) свыше 3150 кВА"]
["13)",null,null,null,null,null,null,null,null,null,null,null,null,null,null,null,null,null,null,null,null,null,null,null,null,null,null,null,"13) свыше 4000 кВА"]

{"sheet":"1.1Назв. объ. эл. сетевого хоз.","index":14,"n_rows":31,"n_cols":21,"rows_kept":31,"cut":false,"hidden":true,"merged":[[0,13,0,14],[0,16,0,17],[0,19,0,20],[0,0,0,1],[0,7,0,8],[0,3,0,5],[0,10,0,11]]}
["2. ВЛ",null,null,"3. КЛ",null,null,null,"4. Реклоузеры, линейные разъединители, выключатели нагрузки + распределительные пункты (РП), за исключением комплектных распределительных устройств наружной установки (КРН, КРУН),  комплектные распределительные устройства наружной установки (КРН, КРУН) , переключательные пункты",null,null," 5. трансформаторные подстанции (ТП), за исключением распределительных трансформаторных подстанций (РТП), с уровнем напряжения до 35 кВ",null,null,"6. распределительные трансформаторные подстанции (РТП) с уровнем напряжения до 35 кВ",null,null,"7. подстанции уровнем напряжения 35 кВ и выше",null,null,"8. обеспечение средствами коммерческого учета электрической энергии (мощности)"]
["1) Деревянные","деревянных опорах",null,"1) траншея"," в траншеях","в траншее",null,"1) реклоузер","реклоузеры",null,"1) один","однотрансформаторные подстанции (за исключением РТП)",null,"1) один","распределительные однотрансформаторные подстанции",null,"1.) до 6,3 МВА включительно","до 6,3 МВА включительно",null,"1) однофазные","однофазные"]
["2) Металлические","металлических опорах",null,"2) блоки"," в блоках","в блоке",null,"2) линейные разъединители","линейные разъединители",null,"2) два","двухтрансформаторные и более подстанции (за исключением РТП)",null,"2) два","распределительные двухтрансформаторные подстанции",null,"2.) от 6,3 МВА до 10 МВА включительно","от 6,3 МВА до 10 МВА включительно",null,"2) трехфазные","трехфазные"]
["2.1) Металлические, за исключением многогранных","металлических опорах, за исключением многогранных",null,"3) каналы"," в каналах","в канале",null,"3) выключатели нагрузки","выключатели нагрузки, устанавливаемые вне трансформаторных подстанций и распределительных и переключательных пунктов,",null,"1.) до 25 кВА включительно","мощностью до 25 кВА включительно",null,"1.) до 25 кВА включительно","до 25 кВА включительно",null,"3.) от 10 МВА до 16 МВА включительно","от 10 МВА до 16 МВА включительно",null,"1) прямого включения","прямого включения"]
["2.2) Металлические многогранные","многогранных металлических опорах",null,"4) туннели и коллекторы"," в туннелях и коллекторах","в туннеле или коллекторе",null,"4) распределительные пункты, за исключением КРН, КРУН","распределительные пункты (РП), за исключением комплектных распределительных устройств наружной установки (КРН, КРУН),",null,"2.) от 25 до 100 кВА включительно","мощностью от 25 до 100 кВА включительно",null,"2.) от 25 до 100 кВА включительно"," от 25 до 100 кВА включительно",null,"4.) от 16 МВА до 25 МВА включительно","от 16 МВА до 25 МВА включительно",null,"2) полукосвенного включения","полукосвенного включения"]
["3) Железобетонные","железобетонных опорах",null,"5) галереи и эстакады"," в галереях и эстакадах","в галерее или на эстакаде",null,"5) КРН, КРУН","комплектные распределительные устройства наружной установки (КРН, КРУН),",null,"3.) от 100 до 250 кВА включительно","мощностью от 100 до 250 кВА включительно",null,"3.) от 100 до 250 кВА включительно"," от 100 до 250 кВА включительно",null,"5.) от 25 МВА до 32 МВА включительно","от 25 МВА до 32 МВА включительно",null,"3) косвенного включения","косвенного включения"]
["1) Изолированый","изолированым",null,"6) метод горизонтального наклонного бурения",", прокладываемые методом горизонтального наклонного бурения",null,null,"6) переключательные пункты","переключательные пункты",null,"4.) от 250 до 400 кВА включительно","мощностью от 250 до 400 кВА включительно",null,"4.) от 250 до 400 кВА включительно"," от 250 до 400 кВА включительно",null,"6.) от 32 МВА до 40 МВА включительно","от 32 МВА до 40 МВА включительно"]
["2) Неизолированный","неизолированным",null,"7) подводная прокладка"," подводной прокладки,"," подводной прокладки,",null,"1) до 100 А","до 100 А включительно",null,"5.) от 400 до 630 кВА включительно","мощностью от 400 до 630 кВА включительно",null,"5.) от 400 до 630 кВА включительно"," от 400 до 630 кВА включительно",null,"7.) от 40 МВА до 63 МВА включительно","от 40 МВА до 63 МВА включительно"]
["1) Медный","медным",null,"1) одножильный","одножильные",null,null,"2) от 100 до 250 А включительно","от 100 до 250 А включительно",null,"6.) от 630 кВА до 1000 кВА","мощностью от 630 кВА до 1000 кВА",null,"6.) от 630 кВА до 1000 кВА"," от 630 кВА до 1000 кВА",null,"8.) от 63 МВА до 80 МВА включительно","от 63 МВА до 80 МВА включительно"]
["2) Стальной","стальным",null,"2) многожильный","многожильные",null,null,"3) от 250 до 500 А включительно","от 250 до 500 А включительно",null,"7.) от 1000 кВА до 1250 кВА","мощностью от 1000 кВА до 1250 кВА",null,"7.) от 1000 кВА до 1250 кВА"," от 1000 кВА до 1250 кВА",null,"9.) от 80 МВА до 100 МВА включительно","от 80 МВА до 100 МВА включительно"]
["3) Сталеалюминиевый","сталеалюминиевым",null,"1) резиновая или пластмассовая","резиновой или пластмассовой",null,null,"4) от 500 до 1000 А включительно","от 500 до 1000 А включительно",null,"8.) от 1250 кВА до 1600 кВА включительно","мощностью от 1250 кВА до 1600 кВА включительно",null,"8.) от 1250 кВА до 1600 кВА включительно"," от 1250 кВА до 1600 кВА включительно",null,"10) свыше 100 МВА"," свыше 100 МВА"]
["4) Алюминиевый","алюминиевым",null,"2) бумажная","бумажной",null,null,"5) свыше 1000 А","свыше 1000 А",null,"9.) от 1600 кВА до 2000 кВА включительно","мощностью от 1600 кВА до 2000 кВА включительно",null,"9.) от 1600 кВА до 2000 кВА включительно"," от 1600 кВА до 2000 кВА включительно",null,"1) 35/6(10) кВ","35/6(10) кВ"]
["1) до 50 квадратных мм включительно","до 50 квадратных мм включительно",null,"1) до 50 квадратных мм включительно","до 50 квадратных мм включительно",null,null,"1) до 5 включительно","до 5 включительно",null,"10) от 2000 кВА до 2500 кВА включительно","мощностью от 2000 кВА до 2500 кВА включительно",null,"10) от 2000 кВА до 2500 кВА включительно"," от 2000 кВА до 2500 кВА включительно",null,"2) 35/0,4 кВ","35/0,4 кВ"]
["2) от 50 до 100 квадратных мм включительно","от 50 до 100 квадратных мм включительно",null,"2)  от 50 до 100 квадратных мм включительно"," от 50 до 100 квадратных мм включительно",null,null,"2) от 5 до 10 включительно","от 5 до 10 включительно",null,"11) от 2500 кВА до 3150 кВА включительно","мощностью  от 2500 кВА до 3150 кВА включительно",null,"11) от 2500 кВА до 3150 кВА включительно"," от 2500 кВА до 3150 кВА включительно",null,"3) 110/35 кВ","110/35 кВ"]
["3) от 100 до 200 квадратных мм включительно","от 100 до 200 квадратных мм включительно",null,"3) от 100 до 200 квадратных мм включительно","от 100 до 200 квадратных мм включительно",null,null,"3) от 10 до 15 включительно","от 10 до 15 включительно",null,"12) от 3150 кВА до 4000 кВА включительно","мощностью  от 3150 кВА до 4000 кВА включительно",null,"12) свыше 3150 кВА"," свыше 3150 кВА",null,"4) 110/6(10) кВ","110/6(10) кВ"]
["4) от 200 до 500 квадратных мм включительно","от 200 до 500 квадратных мм включительно",null,"4) от 200 до 250 квадратных мм включительно","от 200 до 250 квадратных мм включительно",null,null,"4) свыше 15","свыше 15",null,"13) свыше 4000 кВА","мощностью свыше 4000 кВА",null,"1) открытого"," открытого типа",null,"5) 110/35/6(10) кВ","110/35/6(10) кВ"]
["5) от 500 до 800 квадратных мм включительно","от 500 до 800 квадратных мм включительно",null,"5) от 250 до 300 квадратных мм включительно","от 250 до 300 квадратных мм включительно",null,null,"1) 0,4 кВ и ниже","0,4 кВ и ниже",null,"1) столбового/мачтового","столбового/мачтового типа",null,"2) закрытого "," закрытого типа ",null,"1) один","однотрансформаторные подстанции"]
["6) свыше 800 квадратных мм","свыше 800 квадратных мм",null,"6) от 300 до 400 квадратных мм включительно","от 300 до 400 квадратных мм включительно",null,null,"2) 1 - 20  кВ","1 - 20  кВ",null,"2) шкафного или киоскового ","шкафного или киоскового типа",null,"1) 6(10)/0,4 кВ","6(10)/0,4 кВ",null,"2) два","двухтрансформаторные подстанции"]
["1) Одноцепные ","одноцепные ",null,"7) от 400 до 500 квадратных мм включительно","от 400 до 500 квадратных мм включительно",null,null,"3) 35 кВ","35 кВ",null,"3) блочного","блочного типа",null,"2) 20/0,4 кВ","20/0,4 кВ",null,"1) открытого"," открытого типа"]
["2) Двухцепные","двухцепные",null,"8) от 500 до 800 квадратных мм включительно","от 500 до 800 квадратных мм включительно",null,null,"4) 110 кВ и выше","110 кВ и выше",null,"4) встроенного","встроенного типа",null,null,null,null,"2) закрытого "," закрытого типа "]
["1) 0,4 кВ и ниже",0.4,null,"9) свыше 800 квадратных мм","свыше 800 квадратных мм",null,null,null,null,null,"1) 6/0,4 кВ","6/0,4 кВ"]
["2) 1 - 20  кВ","1 - 20",null,"1) один","с одним кабелем","с одной трубой в скважине",null,null,null,null,"2) 10/0,4 кВ","10/0,4 кВ"]
["3) 27,5 - 60 кВ","27,5 - 60",null,"2) два","с двумя кабелями","с двумя трубами в скважине",null,null,null,null,"3) 20/0,4 кВ","20/0,4 кВ"]
["4) 110 кВ и выше",110,null,"3) три","с тремя кабелями","с тремя трубами в скважине",null,null,null,null,"4) 6/10\n(10/6) кВ","6/10\n(10/6) кВ"]
[null,null,null,"4) четыре","с четырьмя кабелями","с четырьмя трубами в скважине",null,null,null,null,"5) 10/20\n(20/10) кВ","10/20\n(20/10) кВ"]
[null,null,null,"5) более четырех","кабелей более четырех","труб более четырех",null,null,null,null,"6) 6/20\n(20/6) кВ","6/20\n(20/6) кВ"]
[null,null,null,"1) 0,4 кВ и ниже","0,4 кВ и ниже"]
[null,null,null,"2) 1 - 10  кВ","1 - 10  кВ"]
[null,null,null,"3) 15 - 20 кВ","15 - 20 кВ"]
[null,null,null,"4) 27,5 - 60 кВ","27,5 - 60 кВ"]
[null,null,null,"5) 110 кВ и выше","110 кВ и выше"]

{"sheet":"Приложение","index":15,"n_rows":26,"n_cols":6,"rows_kept":26,"cut":false,"hidden":false,"merged":[[0,1,3,5]]}
[null,{"$f":"\"Расчет фактических расходов на выполнение мероприятий по технологическому присоединению, предусмотренных подпунктами 'а' и 'в' пункта 16 Методических указаний, за \" & Титульный!D10-2 & \"  г.\"&\n\"(выполняется отдельно по мероприятиям, \nпредусмотренным подпунктами 'а' и 'в' пункта 16 Методических указаний)\"","v":"Расчет фактических расходов на выполнение мероприятий по технологическому присоединению, предусмотренных подпунктами 'а' и 'в' пункта 16 Методических указаний, за 2022  г.(выполняется отдельно по мероприятиям, \nпредусмотренным подпунктами 'а' и 'в' пункта 16 Методических указаний)"}]
[]
[]
[]
[null,null,null,"руб."]
[null,"N п/п","Показатели",{"$f":"\"Данные за предыдущий период регулирования (n-2) \"& Титульный!D10-2 & \" год\"","v":"Данные за предыдущий период регулирования (n-2) 2022 год"},{"$f":"\"Данные за год (n-3), предшествующий предыдущему периоду регулирования \"\n& Титульный!D10-3 & \" год\"","v":"Данные за год (n-3), предшествующий предыдущему периоду регулирования 2021 год"},{"$f":"\"Данные за год (n-4), предшествующий году (n-3) \"\n& Титульный!D10-4 &\" год\"","v":"Данные за год (n-4), предшествующий году (n-3) 2020 год"}]
[null,1,2,3,4,5]
[null,"1.","Расходы по выполнению мероприятий по технологическому присоединению, всего",{"$f":"SUM(D9:D13)+D22","v":4651.41},{"$f":"SUM(E9:E13)","v":0},{"$f":"SUM(F9:F13)","v":0}]
[null,"1.1.","Вспомогательные материалы",976.8]
[null,"1.2.","Энергия на хозяйственные нужды"]
[null,"1.3.","Оплата труда ППП",2817.95]
[null,"1.4.","Отчисления на страховые взносы",856.66]
[null,"1.5.","Прочие расходы, всего, в том числе:",{"$f":"SUM(D14:D16)","v":0}]
[null,"1.5.1.","- работы и услуги производственного характера"]
[null,"1.5.2.","- налоги и сборы, уменьшающие налогооблагаемую базу на прибыль организаций, всего"]
[null,"1.5.3.","- работы и услуги непроизводственного характера, в том числе:",{"$f":"SUM(D17:D21)","v":0}]
[null,"1.5.3.1.","услуги связи"]
[null,"1.5.3.2.","расходы на охрану и пожарную безопасность"]
[null,"1.5.3.3.","расходы на информационное обслуживание, иные услуги, связанные с деятельностью по технологическому присоединению"]
[null,"1.5.3.4.","плата за аренду имущества"]
[null,"1.5.3.5.","другие прочие расходы, связанные с производством и реализацией"]
[null,"1.6.","Внереализационные расходы, всего",{"$f":"SUM(D23:D26)","v":0}]
[null,"1.6.1.","- расходы на услуги банков"]
[null,"1.6.2.","- % за пользование кредитом"]
[null,"1.6.3.","- прочие обоснованные расходы"]
[null,"1.6.4.","- денежные выплаты социального характера (по Коллективному договору)"]